{"text_format":"1","workbook":"xlsx","n_sheets":2,"sheets":["1 POINT CHARGE","2023 HealthFlex Rates"],"not_rendered":{"charts":0,"images":3,"macros":1,"external_links":0,"defined_names":7,"comments":0,"pivot_tables":0},"unopened":[],"bounds":{"document_bytes":16777216,"sheet_cells":100000,"rows_first":2000,"rows_last":500,"rows_between":2000,"halvings":0,"cell_chars":16384,"cell_head_chars":4096},"cells_cut":0,"cells_raw":0,"read":"whole","date_system":"1900"}

{"sheet":"1 POINT CHARGE","index":0,"n_rows":359,"n_cols":92,"rows_kept":359,"cut":false,"hidden":false,"merged":[[11,1,12,1],[22,2,22,20],[35,16,35,20],[26,2,26,20],[25,2,25,20],[24,2,24,16],[23,2,23,16],[20,2,20,16],[23,17,23,20],[16,2,16,16],[19,2,19,16],[17,2,17,16],[27,2,27,20],[12,4,12,16],[11,3,11,16],[12,17,12,20],[6,3,6,13],[10,17,10,20],[11,17,11,20],[13,2,13,20],[15,2,15,16],[10,3,10,16],[7,17,7,20],[8,17,8,20],[1,63,2,63],[2,87,2,90],[4,2,4,13],[9,14,9,20],[3,68,4,68],[3,69,4,69],[5,14,5,20],[3,67,4,67],[2,6,2,8],[2,10,2,12],[4,15,4,21],[7,3,7,16],[8,3,8,16],[3,66,4,66],[3,72,3,77],[6,14,6,20],[3,83,3,85],[37,16,37,20],[38,16,38,20],[36,16,36,20],[14,2,14,20],[17,17,17,20],[18,2,18,20],[3,79,3,81],[38,2,38,15],[35,2,35,15],[17,63,18,63],[3,70,4,70],[15,17,15,20],[16,17,16,20],[34,2,34,15],[24,17,24,20],[44,1,44,23],[46,5,46,10],[36,2,36,15],[37,2,37,15],[39,2,39,15],[59,5,59,8],[59,1,59,3],[59,10,59,16],[39,16,39,20],[49,16,49,21],[40,16,40,20],[59,18,59,21],[56,1,57,24],[54,1,55,24],[53,1,53,24],[40,2,40,15],[52,0,52,1],[42,2,42,20],[41,2,41,20],[48,10,48,13],[51,6,51,11],[34,16,34,20],[33,2,33,20],[19,17,19,20],[20,17,20,20],[31,2,31,20],[32,2,32,20],[30,2,30,20],[28,2,28,20]]}
[null,"2023 Pastor Compensation Form for 1- Point Charge/Church",null,null,null,null,null,null,null,null,null,null,null,null,null,null,null,null,null,null,null,null,null,null,null,null,null,null,null,null,null,null,null,null,null,null,null,null,null,null,null,null,null,"CLERGY_DATA_BASE",null,null,null,null,"CHARGE_DATA_BASE",null,null,null,null,null,null,null,null,null,null,"LOOKUP TABLE",null,null,null,"DROPDOWN",null,null,"LOOKUP TABLE"]
[null,null,null,null,null,null,null,null,null,null,null,null,null,null,null,null,null,null,null,null,null,null,null,null,null,null,null,null,null,null,null,null,null,null,null,null,null,null,null,null,null,null,null,1,{"$f":"+AR2+1","v":2},{"$f":"+AS2+1","v":3},{"$f":"+AT2+1","v":4},null,1,{"$f":"+AW2+1","v":2},3,4,5,6,7,8,9,null,null,"HEALTHFLEX_ELIGIBLE",null,"$BK$5:$BM$26",null,"In Name Manager:\nHealthFlex_Coverage",null,null,"In Name Manager: HEALTHFLEX_RATES",null,null,null,"$BL$6:$BO$9"]
[null,"Effective Dates:",null,null,null,"From:","2023-01-01",null,null,"To:","2023-12-31",null,null,null,null,null,null,null,null,null,null,null,null,null,null,null,null,null,null,null,null,null,null,null,null,null,null,null,null,null,null,null,null,"CLERGY_NAMES_SORT","CONF_RELATION_CODE","APPT_TITLE","PERCENT_SRVC",null,"CHARGE_NAME_SORT","DISTRICT","CONFCHURCHID","CHURCH_1_NAME","CHURCH_1_RGC","CHURCH_2_NAME","CHURCH_2_RGC","CHURCH_3_NAME","CHURCH_3_RGC",null,null,1,2,3,null,null,null,null,1,2,3,4,5,null,"INPUT FOR CALCULATIONS",null,null,null,null,null,null,null,null,null,null,null,null,null,null,"Base Salary for Income Limit =",null,null,null,76221]
[null,null,null,null,null,null,null,null,null,null,null,null,null,null,null,null,null,null,null,null,null,null,null,null,null,null,null,null,null,null,null,null,null,null,null,null,null,null,null,null,null,null,null,"Select Pastor's Name",null,null,null,null,"Alice / Mathis","Coastal Bend District",2010,"Alice: First","No","Mathis","No",null,null,null,null,"CONF_REL_ID","CONF_RELATION","Eligible",null,"Pastor Only",null,null,null,"Maximum Cost of Insurance","Minimum Cost of Insurance","Minimum \nBill to Church","Max Church Election Amount",null,"MEDICAL PLANS COST PER MONTH",null,null,null,null,null,null,"DENTAL PLANS COST PER MONTH",null,null,null,"VISION PLANS COST PER MONTH",null,null,null,"PENSION_BENEFITS"]
[null,"Line #","Part I - General, Pastor, and Charge/Church",null,null,null,null,null,null,null,null,null,null,null,null,"Info & Calculations",null,null,null,null,null,null,"Line #","Charge Expense",null,null,null,null,null,null,null,null,null,null,null,null,null,null,null,null,null,null,null,"Adams, Jason Elliot","FE","Senior Pastor",1,null,"Altair: Wesley Chapel","Crossroads District",3000,"Altair: Wesley Chapel","No",null,null,null,null,null,null,"AM","Associate Member","Yes",null,"Pastor Plus One",null,null,null,null,null,null,null,null,"B1000","C2000","C3000","H1500","H2000","H3000",null,"HMO","Passive PPO","Dental PPO",null,"Exam Core","Full Service","Premier",null,null,null,"% SERVICE","Income Limit","Amount"]
[null,1,"Pastor Name",null,"(Select green cell, then use drop-down button to find pastor's name.) >",null,null,null,null,null,null,null,null,null,"Select Pastor's Name",null,null,null,null,null,null,null,{"$f":"+B6","v":1},null,null,null,null,null,null,null,null,null,null,null,null,null,null,null,null,null,null,null,null,"Adams, Timothy Mitchell","PL","Senior Pastor",0.75,null,"Aransas Pass UMC","Coastal Bend District",2020,"Aransas Pass","No",null,null,null,null,null,null,"FD","Deacon in full connection","Yes",null,"Pastor Plus Family",null,null,"Pastor Only",{"$f":"ROUND(((MAX(BU6:BZ6)+MAX(CB6:CD6)+MAX(CF6:CH6))*12),0)","v":12600},11400,11400,{"$f":"BP6-BR6","v":1200},null,992,952,829,928,840,732,null,16,44,36,null,0,8,14,null,"CPP",null,1,{"$f":"2*CN3","v":152442},0.03]
[null,2,null,"Appointment Title",null,null,null,null,null,null,null,null,null,null,{"$f":"VLOOKUP($O$6,$AR$4:$AU$372,3)","v":0},null,null,null,null,null,null,null,2,null,null,null,null,null,null,null,null,null,null,null,null,null,null,null,null,null,null,null,null,"Aguilar, Peter Michael","FE","Senior Pastor",1,null,"Art","West District",7000,"Art","No",null,null,null,null,null,null,"FE","Elder in full connection","Yes",null,null,null,null,"Pastor Plus Family",{"$f":"ROUND(((MAX(BU7:BZ7)+MAX(CB7:CD7)+MAX(CF7:CH7))*12),0)","v":23952},{"$f":"(MIN(BU7:BZ7))*12","v":16704},11400,{"$f":"BP7-BR7","v":12552},null,1885,1809,1575,1761,1596,1392,null,28,88,71,null,0,13,23,null,"CRSP Defined Benefit",null,1,"none",6132]
[null,3,null,"Conference Relationship",null,null,null,null,null,null,null,null,null,null,null,null,null,{"$f":"VLOOKUP($O$6,$AR$4:$AU$372,2)","v":0},null,null,null,null,3,null,null,null,null,null,null,null,null,null,null,null,null,null,null,null,null,null,null,null,null,"Alejandro, Edith","PL","Senior Pastor",0.25,null,"Austin New Church","Capital District",1075,"Austin New Church","No",null,null,null,null,null,null,"FL","Full time Local Pastor","Yes",null,null,null,null,"Pastor Plus One",{"$f":"ROUND(((MAX(BU8:BZ8)+MAX(CB8:CD8)+MAX(CF8:CH8))*12),0)","v":32964},{"$f":"(MIN(BU8:BZ8))*12","v":22860},11400,{"$f":"BP8-BR8","v":21564},null,2579,2475,2154,2411,2185,1905,null,50,132,107,null,0,20,36,null,"CRSP Defined Contribution",null,1,"none",0.03]
[null,{"$f":"+B8+1","v":4},null,"% Service  (Full Time=100%, 3/4 time=75%, half time=50%, quarter time=25%)",null,null,null,null,null,null,null,null,null,null,null,null,null,{"$f":"VLOOKUP($O$6,$AR$4:$AU$372,4)","v":0},null,null,null,null,4,null,null,null,null,null,null,null,null,null,null,null,null,null,null,null,null,null,null,null,null,"Alejandro, Ezekiel","PL","Senior Pastor",0.25,null,"Austin: Berkeley UMC","Capital District",1010,"Austin: Berkeley","No",null,null,null,null,null,null,"LY",null,"No",null,"DROPDOWN",null,null,"Maximum cost = Highest Cost Medical + Highest Cost Dental + Highest Cost Vision",null,null,null,null,null,null,null,null,null,null,null,null,null,null,null,null,null,null,null,null,"UMPIP",null,"< 100%","none",0.09]
[null,5,"Charge Name",null,"(Select green cell, then use drop-down button to find Name of Charge) >",null,null,null,null,null,null,null,null,null,"SELECT CHARGE'S NAME",null,null,null,null,null,null,null,5,null,null,null,null,null,null,null,null,null,null,null,null,null,null,null,null,null,null,null,null,"Allan, Paul William","FE","Senior Pastor",1,null,"Austin: Bethany","Capital District",1020,"Austin: Bethany","No",null,null,null,null,null,null,"OA","Associate Member of other Conference","Yes",null,"In Name Manager: HOUSING_TYPE",null,null,"Minimum Cost = Lowest Cost Medical"]
[null,6,null,"District",null,null,null,null,null,null,null,null,null,null,null,null,null,{"$f":"VLOOKUP($O$10,$AW$5:$BD$326,2)","v":0},null,null,null,null,6,null,null,null,null,null,null,null,null,null,null,null,null,null,null,null,null,null,null,null,null,"Altman, Ray Joseph","FE","Senior Pastor",1,null,"Austin: Covenant UMC","Capital District",1030,"Austin: Covenant","No",null,null,null,null,null,null,"OD","Deacon of other Conference","Yes"]
[null,9,null,"Church is Former Rio Grande Conference (RGC) Legacy Church >",null,null,null,null,null,null,null,null,null,null,null,null,null,{"$f":"VLOOKUP($O$10,$AW$4:$BD$326,5)","v":0},null,null,null,null,9,null,null,null,null,null,null,null,null,null,null,null,null,null,null,null,null,null,null,null,null,"Alvarez, Alexander Gomez","RE","Senior Pastor",1,null,"Austin: Decker","Capital District",1050,"Austin: Decker","No",null,null,null,null,null,null,"OE","Elder of other conference","Yes",null,"Parsonage"]
[null,null,null,null,"(If \"Yes\", then some benefit expenses are paid through Legacy Funds)",null,null,null,null,null,null,null,null,null,null,null,null,null,null,null,null,null,null,null,null,null,null,null,null,null,null,null,null,null,null,null,null,null,null,null,null,null,null,"Alvarez, Laura Lee","FL","Senior Pastor",1,null,"Austin: Emmanuel","Capital District",1060,"Austin: Emmanuel","Yes",null,null,null,null,null,null,"OF","Full member of other denomination","Yes",null,"Housing Allowance"]
[null,"Line #","Part II - Salary",null,null,null,null,null,null,null,null,null,null,null,null,null,null,null,null,null,null,null,"Line #","Charge Expense",null,null,null,null,null,null,null,null,null,null,null,null,null,null,null,null,null,null,null,"Amerson, James Patrick","FE","Senior Pastor",1,null,"Austin: First UMC","Capital District",1080,"Austin: First","No",null,null,null,null,null,null,"OR","Elder of other conference - Retired","No",null,"None"]
[null,10,"Base Salary Paid by Church",null,null,null,null,null,null,null,null,null,null,null,null,null,null,null,null,null,null,null,{"$f":"+B15","v":10},null,null,null,null,null,null,null,null,null,null,null,null,null,null,null,null,null,null,null,null,"Angle, Polly Morrison","OF","Senior Pastor",1,null,"Austin: Lake Travis","Capital District",1120,"Austin: Lake Travis","No",null,null,null,null,null,null,"PD","Probationary Deacon/Deaconess","Yes"]
[null,{"$f":"+B15+1","v":11},"Conference or District Salary Support  (must be requested & approved)",null,null,null,null,null,null,null,null,null,null,null,null,null,null,null,null,null,null,null,{"$f":"+B16","v":11},null,null,null,null,null,null,null,null,null,null,null,null,null,null,null,null,null,null,null,null,"Armwood, Jasper Earl","OF","Senior Pastor",0.25,null,"Austin: Life in the City","Capital District",1125,"Austin: Life In The City","No",null,null,null,null,null,null,"PE","Probationary Elder","Yes"]
[null,12,"Total Salary to Pastor from Church(es) + Conference/District Salary Support",null,null,null,null,null,null,null,null,null,null,null,null,null,null,{"$f":"X15+R16","v":0},null,null,null,null,{"$f":"+B17","v":12},null,null,null,null,null,null,null,null,null,null,null,null,null,null,null,null,null,null,null,null,"Aziz, Barbara Kutac","FE","Senior Pastor",1,null,"Austin: Memorial","Capital District",1130,"Austin: Memorial","No",null,null,null,null,null,null,"PL","Part time Local Pastor","No",null,"DROPDOWN"]
[null,13,"Type of Housing Supplied by Church to Pastor",null,null,null,null,null,null,null,null,null,null,null,null,null,null,"None",null,null,null,null,{"$f":"+B18","v":13},{"$f":"IF(X19>0,(IF($R$18=\"Housing Allowance\",\" \",\"< ERROR. Change Line 13 or 14.\")),\" \")","v":" "},null,null,null,null,null,null,null,null,null,null,null,null,null,null,null,null,null,null,null,"Bachelor, David Leslie","OE","Senior Pastor",1,null,"Austin: Northwest Hills","Capital District",1140,"Austin: Northwest Hills","No",null,null,null,null,null,null,"RA","Retired Associate Member","No"]
[null,14,"Housing Allowance supplied instead of Parsonage",null,null,null,null,null,null,null,null,null,null,null,null,null,null,null,null,null,null,null,14,null,null,null,null,null,null,null,null,null,null,null,null,null,null,null,null,null,null,null,null,"Bae, Hyeok","OF","Senior Pastor",1,null,"Austin: Oak Hill UMC","Capital District",1150,"Austin: Oak Hill","No",null,null,null,null,null,null,"RD","Retired Deacon/Deaconess","No"]
[null,15,"Pre-tax deduction from Pastor's Salary for IRS 107 Exclusion as Pastoral Housing Cost",null,null,null,null,null,null,null,null,null,null,null,null,null,null,0,null,null,null,null,15,null,null,null,null,null,null,null,null,null,null,null,null,null,null,null,null,null,null,null,null,"Baik, Frank Bumjoon","FE","Senior Pastor",1,null,"Austin: Servant Church","Capital District",1165,"Austin: Servant Church","No",null,null,null,null,null,null,"RE","Retired Elder","No",null,"Select Office this person holds"]
[null,16,"Plan Compensation For Pension Purposes",null,null,null,null,null,null,null,null,null,null,null,null,null,null,{"$f":"IF($R$18=\"Parsonage\",+$R$17*1.25,(IF(R18=\"HOUSING ALLOWANCE\",+$R$17+$X$19,R17)))","v":0},null,null,null,null,16,null,null,null,null,null,null,null,null,null,null,null,null,null,null,null,null,null,null,null,null,"Baird, Dawn Denise","FE","Senior Pastor",1,null,"Austin: Simpson UMC","Capital District",1170,"Austin: Simpson","No",null,null,null,null,null,null,"RL","Retired Local Pastor","No",null,"Church Council Chair"]
[null,"A Full Time Clergy must elect A UMPIP Contribution of at least 1% of Plan Compensation to receive full pension Benefits",null,null,null,null,null,null,null,null,null,null,null,null,null,null,null,null,null,null,null,null,null,null,null,null,null,null,null,null,null,null,null,null,null,null,null,null,null,null,null,null,null,"Balensiefen, Lori Michelle","FD","Assoc. Pastor",1,null,"Austin: St. John's","Capital District",1180,"Austin: St. John's","No",null,null,null,null,null,null,"RP","Retired Probationary Member","No",null,"SPPR/PPR Chair"]
[null,"Line #","Part III - Health Benefits (HF = HealthFlex) See Notes",null,null,null,null,null,null,null,null,null,null,null,null,null,null,null,null,null,null,null,"Line #","Charge Expense",null,null,null,null,null,null,null,null,null,null,null,null,null,null,null,null,null,null,null,"Banda, Amanda","FL","Assoc. Pastor",1,null,"Austin: St. Luke","Capital District",1190,"Austin: St. Luke","No",null,null,null,null,null,null,"SY","Supply Pastor","No",null,"Treasurer"]
[null,{"$f":"+B21+1","v":17},"Full-Time Clergy is Eligible and Premium Required for HealthFlex Plan",null,null,null,null,null,null,null,null,null,null,null,null,null,null,{"$f":"IF((VLOOKUP($R$8,$BH$5:$BJ$26,3)=\"NO\"),\"NO\",IF($R$9=1,\"YES\",\"NO\"))","v":{"$error":"#N/A"}},null,null,null,null,{"$f":"+B24","v":17},null,null,null,null,null,null,null,null,null,null,null,null,null,null,null,null,null,null,null,null,"Baxter Ballou, Becky","FE","Senior Pastor",1,null,"Austin: St. Mark","Capital District",1200,"Austin: St. Mark","No",null,null,null,null,null,null,"TBS",null,"No"]
[null,{"$f":"+B24+1","v":18},"Pastor's HealthFlex Benefit Coverage Tier Selection",null,null,null,null,null,null,null,null,null,null,null,null,null,null,null,null,null,null,null,{"$f":"+B25","v":18},null,null,null,null,null,null,null,null,null,null,null,null,null,null,null,null,null,null,null,null,"Beadle, Tracey Bowles","FE","Senior Pastor",1,null,"Austin: St. Paul's","Capital District",1210,"Austin: St. Paul's","No",null,null,null,null,null,null,null,"Unknown","No"]
[null,{"$f":"B25+1","v":19},"Church's Clergy HF Premium Credit Responsibility for Full-Time Appointment",null,null,null,null,null,null,null,null,null,null,null,null,null,null,null,null,null,null,null,{"$f":"+B26","v":19},{"$f":"IF(R24=\"NO\",\"0\",(VLOOKUP($R$25,HealthFlex_Rates,4)))","v":{"$error":"#N/A"}},null,null,null,null,null,null,null,null,null,null,null,null,null,null,null,null,null,null,null,"Beard, Paul Anthony","FL","Senior Pastor",1,null,"Austin: St. Peter's UMC","Capital District",1220,"Austin: St. Peter's","No"]
[null,{"$f":"B26+1","v":20},"Optional \"Church Contribution\" for Dependent Coverage - Enter Amount",null,null,null,null,null,null,null,null,null,null,null,null,null,null,null,null,null,null,null,{"$f":"+B27","v":20},0,null,null,null,null,null,null,null,null,null,null,null,null,null,null,null,null,null,null,null,"Becker, Laura Hewett","FE","Senior Pastor",1,null,"Austin: Tarrytown UMC","Capital District",1230,"Austin: Tarrytown","No"]
[null,{"$f":"+B27+1","v":21},"Church's Total HealthFlex Cost For This Pastor",null,null,null,null,null,null,null,null,null,null,null,null,null,null,null,null,null,null,null,{"$f":"+B28","v":21},{"$f":"SUM(X26:X27)","v":{"$error":"#N/A"}},null,null,null,null,null,null,null,null,null,null,null,null,null,null,null,null,null,null,null,"Bell, Michael Kent","FL","Senior Pastor",1,null,"Austin: Trinity UMC","Capital District",1240,"Austin: Trinity","No"]
[null,"Line #","Part IV - Pastor's Accountable Reimbursable Plan (ARP)",null,null,null,null,null,null,null,null,null,null,null,null,null,null,null,null,null,null,null,"Line #","Charge Expense",null,null,null,null,null,null,null,null,null,null,null,null,null,null,null,null,null,null,null,"Benitez, Osvaldo Casimir","FE","Senior Pastor",1,null,"Austin: University","Capital District",1250,"Austin: University","No"]
[null,{"$f":"+B28+1","v":22},"Accountable Reimbursement Plan (ARP) Recommendation 13% of base compensation",null,null,null,null,null,null,null,null,null,null,null,null,null,null,null,null,null,null,null,{"$f":"+B30","v":22},0,null,null,null,null,null,null,null,null,null,null,null,null,null,null,null,null,null,null,null,"Bergfield, Patricia Mayer","OE","Assoc. Pastor",1,null,"Austin: Wesley UMC","Capital District",1260,"Austin: Wesley","No"]
[null,"Line #","Part V - Recap of Charge/Church Costs",null,null,null,null,null,null,null,null,null,null,null,null,null,null,null,null,null,null,null,"Line #","Charge Expense",null,null,null,null,null,null,null,null,null,null,null,null,null,null,null,null,null,null,null,"Blair, Vallilea","FE","Senior Pastor",1,null,"Austin: Westlake","Capital District",1270,"Austin: Westlake","No"]
[null,{"$f":"+B30+1","v":23},"Salary",null,null,null,null,null,null,null,null,null,null,null,null,null,null,null,null,null,null,null,{"$f":"+B32","v":23},{"$f":"+X15","v":0},null,null,null,null,null,null,null,null,null,null,null,null,null,null,null,null,null,null,null,"Blanco, David E.","FE","Senior Pastor",1,null,"Bandera UMC","Hill Country District",5000,"Bandera","No"]
[null,24,"Housing Allowance",null,null,null,null,null,null,null,null,null,null,null,null,null,null,null,null,null,null,null,{"$f":"+B33","v":24},{"$f":"+X19","v":0},null,null,null,null,null,null,null,null,null,null,null,null,null,null,null,null,null,null,null,"Blanco, Samuel Isaac","FE","Senior Pastor",1,null,"Bastrop UMC","Crossroads District",3010,"Bastrop","No"]
[null,25,"Accountable Reimbursement Plan (ARP)",null,null,null,null,null,null,null,null,null,null,null,null,null,null,null,null,null,null,null,{"$f":"+B34","v":25},{"$f":"+$X$30","v":0},null,null,null,null,null,null,null,null,null,null,null,null,null,null,null,null,null,null,null,"Blanco, Samuel Isaac","PE","Senior Pastor",1,null,"Bay City: Nazareth","Crossroads District",3020,"Bay City: Nazareth","Yes"]
[null,26,null,null,null,null,null,null,null,null,null,null,null,null,null,null,"Paid by RGC Legacy Funds",null,null,null,null,null,{"$f":"+B35","v":26},null,null,null,null,null,null,null,null,null,null,null,null,null,null,null,null,null,null,null,null,"Bland, Philip A.","PE","Senior Pastor",1,null,"Bee Creek UMC","Capital District",1280,"Bee Creek","No"]
[null,27,"Health Benefit Expense ",null,null,null,null,null,null,null,null,null,null,null,null,null,{"$f":"IF($R$24=\"NO\",0,(IF($R$12=\"Yes\",BR6,0)))","v":{"$error":"#N/A"}},null,null,null,null,null,27,{"$f":"SUM($X$26:$X$27)","v":{"$error":"#N/A"}},null,null,null,null,null,null,null,null,null,null,null,null,null,null,null,null,null,null,null,"Blaylock, Lisa Marie","FE","Assoc. Pastor",1,null,"Beeville: First UMC","Coastal Bend District",2050,"Beeville: First","No"]
[null,28,"Comprehensive Protection Plan (CPP)",null,null,null,null,null,null,null,null,null,null,null,null,null,{"$f":"IF($R$12=\"Yes\",X37,0)","v":0},null,null,null,null,null,28,{"$f":"IF(R24=\"YES\",IF($R$21>$CM$6,$CM$6*$CN$6,IF(+$R$9=1,$R$21*$CN$6,0)),0)","v":{"$error":"#N/A"}},null,null,null,null,null,null,null,null,null,null,null,null,null,null,null,null,null,null,null,"Boehk, Karen Sue","RE","Asst. to the District Superintendent",0.5,null,"Beeville: Jones Chapel UMC","Coastal Bend District",2060,"Beeville: Jones Chapel","No"]
[null,29,"Clergy Retirement Security  Program (CRSP) defined benefit",null,null,null,null,null,null,null,null,null,null,null,null,null,{"$f":"IF($R$12=\"Yes\",X38,0)","v":0},null,null,null,null,null,29,{"$f":"IF($R$24=\"Yes\",IF(+$R$9=1,$CN$7,0),0)","v":{"$error":"#N/A"}},null,null,null,null,null,null,null,null,null,null,null,null,null,null,null,null,null,null,null,"Booth, Theresa Marie","FL","Assoc. Pastor",1,null,"Bertram","Capital District",1300,"Bertram","No"]
[null,30,"Clergy Retirement Security  Program (CRSP) defined contribution",null,null,null,null,null,null,null,null,null,null,null,null,null,{"$f":"IF($R$12=\"Yes\",X39,0)","v":0},null,null,null,null,null,30,{"$f":"IF($R$24=\"Yes\",IF(+$R$9=1,$R$21*$CN$8,0),0)","v":{"$error":"#N/A"}},null,null,null,null,null,null,null,null,null,null,null,null,null,null,null,null,null,null,null,"Borrego, Daisy San Jorge","FL","Senior Pastor",1,null,"Big Lake / Barnhart","West District",7020,"Big Lake","No","Barnhart","No"]
[null,31,"UMPIP Church Contribution (for Part Time Appointments)",null,null,null,null,null,null,null,null,null,null,null,null,null,{"$f":"IF($R$12=\"Yes\",X40,0)","v":0},null,null,null,null,null,31,{"$f":"IF(LEFT($R$8,1)=\"S\",0,(IF(LEFT($R$8,1)=\"R\",0,IF(+$R$9<1,$R$21*CN9,0))))","v":0},null,null,null,null,null,null,null,null,null,null,null,null,null,null,null,null,null,null,null,"Bowlin, Russell Philip","PE","Senior Pastor",1,null,"Bishop/Falfurrias/Premont","Coastal Bend District",2080,"Bishop: First","No","Falfurrias","No","Premont","No"]
[null,32,"Total RGC Legacy Contribution  > ",null,null,null,null,null,null,null,null,null,null,null,null,null,{"$f":"SUM(Q36:Q40)","v":{"$error":"#N/A"}},null,null,null,null,null,32,null,null,null,null,null,null,null,null,null,null,null,null,null,null,null,null,null,null,null,null,"Bradford, Scott Alan","AM","Senior Pastor",1,null,"Bishop: El Redentor","Coastal Bend District",2070,"Bishop: El Redentor","Yes"]
[null,33,"Church's Total Compensation Expense (Excludes cost of Utilities)",null,null,null,null,null,null,null,null,null,null,null,null,null,null,null,null,null,null,null,33,{"$f":"SUM(X32:X40)","v":{"$error":"#N/A"}},null,null,null,null,null,null,null,null,null,null,null,null,null,null,null,null,null,null,null,"Brechin, Mark Andrew","FE","Senior Pastor",1,null,"Blanco UMC","Hill Country District",5010,"Blanco","No"]
[null,34,"Church's Total Compensation Expense (Excludes cost of Utilities) LESS any RGC Legacy Contribution",null,null,null,null,null,null,null,null,null,null,null,null,null,null,null,null,null,null,null,{"$f":"+B43","v":34},{"$f":"X42-(N41+Q41)","v":{"$error":"#N/A"}},null,null,null,null,null,null,null,null,null,null,null,null,null,null,null,null,null,null,null,"Brewer, Timothy Carl","RE","Senior Pastor",1,null,"Bloomington","Crossroads District",3035,"Bloomington: First UMC","No"]
[null,null,null,null,null,null,null,null,null,null,null,null,null,null,null,null,null,null,null,null,null,null,null,null,null,null,null,null,null,null,null,null,null,null,null,null,null,null,null,null,null,null,null,"Brewster, Laura Eileen","FE","District Superintendent",1,null,"Boerne: First","Hill Country District",5020,"Boerne","No"]
[null,"Part VI - Signatures",null,null,null,null,null,null,null,null,null,null,null,null,null,null,null,null,null,null,null,null,null,null,null,null,null,null,null,null,null,null,null,null,null,null,null,null,null,null,null,null,null,"Britsch, John James","SY","Senior Pastor",0.75,null,"Bracken UMC","Las Misiones District",6000,"Bracken","No"]
[null,null,null,null,null,null,null,null,null,null,null,null,null,null,null,null,null,null,null,null,null,null,null,null,null,null,null,null,null,null,null,null,null,null,null,null,null,null,null,null,null,null,null,"Brooks, Lori Browder","PL","Senior Pastor",0.75,null,"Brackettville UMC","West District",7040,"Brackettville","No"]
[null,"Pastor's Signature",null,null,"Name:",{"$f":"O6","v":"Select Pastor's Name"},null,null,null,null,null,null,null,null,null,null,null,null,null,null,null,null,"Date:  ",null,null,null,null,null,null,null,null,null,null,null,null,null,null,null,null,null,null,null,null,"Broome, Cheryl Ann","FE","Senior Pastor",1,null,"Brady: First UMC","West District",7050,"Brady: First","No"]
[null,null,null,null,null,null,null,null,null,null,null,null,null,null,"Signature ↑",null,null,null,null,null,null,null,null,null,null,null,null,null,null,null,null,null,null,null,null,null,null,null,null,null,null,null,null,"Brown, Robert G","PL","Senior Pastor",0.25,null,"Bronte: First","West District",7060,"Bronte: First","No"]
[null,"Local Church Representative Name & Office / Signature: ",null,null,null,null,null,null,null,null,null,null,null,null,null,null,null,null,null,null,null,null,"Date:  ",null,null,null,null,null,null,null,null,null,null,null,null,null,null,null,null,null,null,null,null,"Bruhn, Joachim Paul","FE","Senior Pastor",1,null,"Brownsville: El Buen Pastor","El Valle District",4010,"Brownsville: El Buen Pastor","Yes"]
[null,null,null,null,null,null,null,null,null,null,"Printed Name ↑",null,null,null,"Signature ↑",null,"Select Office this person holds",null,null,null,null,null,null,null,null,null,null,null,null,null,null,null,null,null,null,null,null,null,null,null,null,null,null,"Bryant, James Lee","SY","Senior Pastor",0.5,null,"Brownsville: First","El Valle District",4030,"Brownsville: First","No"]
[null,null,null,null,null,null,null,null,null,null,null,null,null,null,null,null,null,null,null,null,null,null,null,null,null,null,null,null,null,null,null,null,null,null,null,null,null,null,null,null,null,null,null,"Burke, Kimberly Anne Ladish","FE","Senior Pastor",1,null,"Brownsville: Templo Emmanuel","El Valle District",4020,"Brownsville: Templo Emmanuel","Yes"]
[null,"District Superintendent's Signature",null,null,null,null,null,null,null,null,null,null,null,null,null,null,null,null,null,null,null,null,"Date:  ",null,null,null,null,null,null,null,null,null,null,null,null,null,null,null,null,null,null,null,null,"Burkhalter, Estela Zuniga","FE","Assoc. Pastor",1,null,"Buchanan Dam: Highland Lakes","Hill Country District",5030,"Buchanan Dam: Highland Lakes","No"]
["NOTES:",null,null,null,null,null,"Printed Name ↑",null,null,null,null,null,null,null,"Signature ↑",null,null,null,null,null,null,null,null,null,null,null,null,null,null,null,null,null,null,null,null,null,null,null,null,null,null,null,null,"Campen, Tanya Eustace","FD","Asst Director of Intergenerational Discipleship",1,null,"Buda UMC","Hill Country District",5040,"Buda","No"]
["1.","For calendar year 2023, pastors will have the opportunity to select from several different plans for health coverage.  These selections will be made in Nov 2022 during the Annual Election Period. The church's clergy HealthFlex Premium Credit Responsibility for Full-Time Appointment is $11,400. If the \"Pastor Only\" plan combination is more than $11,400, the pastor will need to fund any excess premium through a pre-tax deduction from salary (Line 10). The church may elect to fund an optional \"Church Contribution\" for all or a portion of Family Dependent Health Coverage (Line 20). Any excess premium for dependent coverage not funded by the church will be funded through a pre-tax premium deduction from salary (Line 10).      ",null,null,null,null,null,null,null,null,null,null,null,null,null,null,null,null,null,null,null,null,null,null,null,null,null,null,null,null,null,null,null,null,null,null,null,null,null,null,null,null,null,"Canales, Javier","SY","Senior Pastor",0.5,null,"Bulverde UMC","Las Misiones District",6010,"Bulverde","No"]
["2.","The pastor may elect to have salary withheld to participate in other benefit  plans offered through the Rio Texas Conference.  These include a pretax \"Flex Plan\" (DCR, HSA,  MRA plans), retirement 403b plan UMPIP, and an optional life insurance plan.   ",null,null,null,null,null,null,null,null,null,null,null,null,null,null,null,null,null,null,null,null,null,null,null,null,null,null,null,null,null,null,null,null,null,null,null,null,null,null,null,null,null,"Cantrell, Mary June","RL","Senior Pastor",0.5,null,"Burnet UMC","Capital District",1310,"Burnet","No"]
[null,null,null,null,null,null,null,null,null,null,null,null,null,null,null,null,null,null,null,null,null,null,null,null,null,null,null,null,null,null,null,null,null,null,null,null,null,null,null,null,null,null,null,"Cantu, Juan","FE","Senior Pastor",1,null,"Canyon Lake UMC","Hill Country District",5050,"Canyon Lake","No"]
["3.","The Pastor must provide copies to the Church Treasurer on any enrollment form/s or online benefit elections and the church should verify each monthly invoice to determine that the payroll is correctly handled.",null,null,null,null,null,null,null,null,null,null,null,null,null,null,null,null,null,null,null,null,null,null,null,null,null,null,null,null,null,null,null,null,null,null,null,null,null,null,null,null,null,"Cardona, Matthew","FE","Senior Pastor",1,null,"Canyon Lake: North Shore UMC","Hill Country District",5330,"North Shore","No"]
[null,null,null,null,null,null,null,null,null,null,null,null,null,null,null,null,null,null,null,null,null,null,null,null,null,null,null,null,null,null,null,null,null,null,null,null,null,null,null,null,null,null,null,"Careaga, Gricelda B.","PE","Senior Pastor",1,null,"Carrizo Springs","Hill Country District",5060,"Carrizo Springs","No"]
[null,null,null,null,null,null,null,null,null,null,null,null,null,null,null,null,null,null,null,null,null,null,null,null,null,null,null,null,null,null,null,null,null,null,null,null,null,null,null,null,null,null,null,"Careaga, Gricelda Garcia","FL","Senior Pastor",1,null,"Castroville: Medina Valley UMC","Hill Country District",5070,"Castroville: Medina Valley","No"]
[null,"Color Code Key >",null,null,null,"Church Enters Data",null,null,null,null,"Calculated Data Entered Automatically",null,null,null,null,null,null,null,"Instructions",null,null,null,null,"Headings",null,null,null,null,null,null,null,null,null,null,null,null,null,null,null,null,null,null,null,"Carter, Aaron M.","FE","Senior Pastor",1,null,"CC: Asbury","Coastal Bend District",2110,"CC: Asbury","No"]
[null,null,null,null,null,null,null,null,null,null,null,null,null,null,null,null,null,null,null,null,null,null,null,null,null,null,null,null,null,null,null,null,null,null,null,null,null,null,null,null,null,null,null,"Carter, Melvin","PL","Senior Pastor",0.5,null,"CC: El Buen Pastor","Coastal Bend District",2120,"CC: El Buen Pastor","Yes"]
[null,null,null,null,null,null,null,null,null,null,null,null,null,null,null,null,null,null,null,null,null,null,null,null,null,null,null,null,null,null,null,null,null,null,null,null,null,null,null,null,null,null,null,"Casar, Maria Fernanda","FL","Senior Pastor",1,null,"CC: First UMC","Coastal Bend District",2130,"CC: First","No"]
[null,null,null,null,null,null,null,null,null,null,null,null,null,null,null,null,null,null,null,null,null,null,null,null,null,null,null,null,null,null,null,null,null,null,null,null,null,null,null,null,null,null,null,"Cass, Theresa L","PL","Senior Pastor",0.5,null,"CC: Grace","Coastal Bend District",2140,"CC: Grace","No"]
[null,null,null,null,null,null,null,null,null,null,null,null,null,null,null,null,null,null,null,null,null,null,null,null,null,null,null,null,null,null,null,null,null,null,null,null,null,null,null,null,null,null,null,"Castles, Peter Van","FL","Senior Pastor",1,null,"CC: Island in the Son","Coastal Bend District",2150,"CC: Island in the Son","No"]
[null,null,null,null,null,null,null,null,null,null,null,null,null,null,null,null,null,null,null,null,null,null,null,null,null,null,null,null,null,null,null,null,null,null,null,null,null,null,null,null,null,null,null,"Chase, Sylvester E.","FE","Senior Pastor",1,null,"CC: Kelsey Memorial","Coastal Bend District",2160,"CC: Kelsey Memorial","Yes"]
[null,null,null,null,null,null,null,null,null,null,null,null,null,null,null,null,null,null,null,null,null,null,null,null,null,null,null,null,null,null,null,null,null,null,null,null,null,null,null,null,null,null,null,"Clark, Robert Lee","FE","Senior Pastor",1,null,"CC: St. John's","Coastal Bend District",2170,"CC: St. John's","No"]
[null,null,null,null,null,null,null,null,null,null,null,null,null,null,null,null,null,null,null,null,null,null,null,null,null,null,null,null,null,null,null,null,null,null,null,null,null,null,null,null,null,null,null,"Clifton, Sheri Stice","FE","Senior Pastor",1,null,"CC: St. Lukes","Coastal Bend District",2180,"CC: St. Luke's","No"]
[null,null,null,null,null,null,null,null,null,null,null,null,null,null,null,null,null,null,null,null,null,null,null,null,null,null,null,null,null,null,null,null,null,null,null,null,null,null,null,null,null,null,null,"Cline, Mary E.","FL","Senior Pastor",1,null,"CC: St. Paul","Coastal Bend District",2190,"CC: St. Paul","No"]
[null,null,null,null,null,null,null,null,null,null,null,null,null,null,null,null,null,null,null,null,null,null,null,null,null,null,null,null,null,null,null,null,null,null,null,null,null,null,null,null,null,null,null,"Cloyd, Edwin Carlos","FE","Senior Pastor",1,null,"CC: St. Peter's by the Sea/CC District","Coastal Bend District",2200,"CC: St. Peter's By The Sea","No"]
[null,null,null,null,null,null,null,null,null,null,null,null,null,null,null,null,null,null,null,null,null,null,null,null,null,null,null,null,null,null,null,null,null,null,null,null,null,null,null,null,null,null,null,"Cochran, Jack","SY","Supply Pastor",1,null,"CC: Wesley/Kenedy: El Buen Samaritano","Coastal Bend District",2210,"CC: Wesley","No","Kenedy: El Buen Samaritano","Yes"]
[null,null,null,null,null,null,null,null,null,null,null,null,null,null,null,null,null,null,null,null,null,null,null,null,null,null,null,null,null,null,null,null,null,null,null,null,null,null,null,null,null,null,null,"Cochran, John Thomas","FL","Senior Pastor",1,null,"Cedar Creek UMC","Crossroads District",3050,"Cedar Creek","No"]
[null,null,null,null,null,null,null,null,null,null,null,null,null,null,null,null,null,null,null,null,null,null,null,null,null,null,null,null,null,null,null,null,null,null,null,null,null,null,null,null,null,null,null,"Collett, David Melville","FD","Senior Pastor",1,null,"Cedar Park: First","Capital District",1320,"Cedar Park: First","No"]
[null,null,null,null,null,null,null,null,null,null,null,null,null,null,null,null,null,null,null,null,null,null,null,null,null,null,null,null,null,null,null,null,null,null,null,null,null,null,null,null,null,null,null,"Collins, Roy D.","PL","Senior Pastor",0.25,null,"Center Point","Hill Country District",5080,"Center Point","No"]
[null,null,null,null,null,null,null,null,null,null,null,null,null,null,null,null,null,null,null,null,null,null,null,null,null,null,null,null,null,null,null,null,null,null,null,null,null,null,null,null,null,null,null,"Conkelton, Kelly","FL","Assoc. Pastor",1,null,"Chapel Hill","Capital District",1330,"Chapel Hill","No"]
[null,null,null,null,null,null,null,null,null,null,null,null,null,null,null,null,null,null,null,null,null,null,null,null,null,null,null,null,null,null,null,null,null,null,null,null,null,null,null,null,null,null,null,"Cooper, John Robert","FE","Senior Pastor",1,null,"Christine UMC","Las Misiones District",6020,"Christine","No"]
[null,null,null,null,null,null,null,null,null,null,null,null,null,null,null,null,null,null,null,null,null,null,null,null,null,null,null,null,null,null,null,null,null,null,null,null,null,null,null,null,null,null,null,"Crisp, Kristie","PE","Assoc. Pastor",1,null,"Columbus: First","Crossroads District",3060,"Columbus: First","No"]
[null,null,null,null,null,null,null,null,null,null,null,null,null,null,null,null,null,null,null,null,null,null,null,null,null,null,null,null,null,null,null,null,null,null,null,null,null,null,null,null,null,null,null,"Crocker, Michael Paul","FL","Senior Pastor",1,null,"Columbus: St. Paul","Crossroads District",3070,"Columbus: St. Paul","No"]
[null,null,null,null,null,null,null,null,null,null,null,null,null,null,null,null,null,null,null,null,null,null,null,null,null,null,null,null,null,null,null,null,null,null,null,null,null,null,null,null,null,null,null,"Cuellar, Ashley","PL","Senior Pastor",0.5,null,"Comfort: Gaddis Memorial","Hill Country District",5100,"Comfort: Gaddis Memorial","No"]
[null,null,null,null,null,null,null,null,null,null,null,null,null,null,null,null,null,null,null,null,null,null,null,null,null,null,null,null,null,null,null,null,null,null,null,null,null,null,null,null,null,null,null,"Curry, Stephen Antony","FE","Senior Pastor",1,null,"Cotulla: First UMC","Las Misiones District",6030,"Cotulla: First","No"]
[null,null,null,null,null,null,null,null,null,null,null,null,null,null,null,null,null,null,null,null,null,null,null,null,null,null,null,null,null,null,null,null,null,null,null,null,null,null,null,null,null,null,null,"Dabale, Sadique","FL","Senior Pastor",1,null,"Cross Tracks Church","Capital District",1400,"Cross Tracks Church","No"]
[null,null,null,null,null,null,null,null,null,null,null,null,null,null,null,null,null,null,null,null,null,null,null,null,null,null,null,null,null,null,null,null,null,null,null,null,null,null,null,null,null,null,null,"Danforth, Gail","FL","Senior Pastor",1,null,"Crystal City: Swindall Memorial","Hill Country District",5120,"Crystal City: Swindall Memorial","Yes"]
[null,null,null,null,null,null,null,null,null,null,null,null,null,null,null,null,null,null,null,null,null,null,null,null,null,null,null,null,null,null,null,null,null,null,null,null,null,null,null,null,null,null,null,"Davis, Curtis Jeffrey","PE","Assoc. Pastor",1,null,"Cuero/Rabke","Crossroads District",3080,"Cuero: First","No","Rabke","No"]
[null,null,null,null,null,null,null,null,null,null,null,null,null,null,null,null,null,null,null,null,null,null,null,null,null,null,null,null,null,null,null,null,null,null,null,null,null,null,null,null,null,null,null,"DeHaven, Bradley Lynn","FE","Senior Pastor",1,null,"Del Rio: El Principe de Paz","West District",7110,"Del Rio: Principe de Paz","Yes"]
[null,null,null,null,null,null,null,null,null,null,null,null,null,null,null,null,null,null,null,null,null,null,null,null,null,null,null,null,null,null,null,null,null,null,null,null,null,null,null,null,null,null,null,"Deviney, Forrest Macon","FE","Senior Pastor",1,null,"Del Rio: First UMC","West District",7100,"Del Rio: First","No"]
[null,null,null,null,null,null,null,null,null,null,null,null,null,null,null,null,null,null,null,null,null,null,null,null,null,null,null,null,null,null,null,null,null,null,null,null,null,null,null,null,null,null,null,"Deviney, Thomas Forrest","FE","Senior Pastor",1,null,"Devine UMC","Las Misiones District",6040,"Devine: First","No"]
[null,null,null,null,null,null,null,null,null,null,null,null,null,null,null,null,null,null,null,null,null,null,null,null,null,null,null,null,null,null,null,null,null,null,null,null,null,null,null,null,null,null,null,"Dillon, David Wayne","PL","Senior Pastor",0.75,null,"Dewville/Guadalupe Regional Hospice Services","Crossroads District",3100,"Dewville","No"]
[null,null,null,null,null,null,null,null,null,null,null,null,null,null,null,null,null,null,null,null,null,null,null,null,null,null,null,null,null,null,null,null,null,null,null,null,null,null,null,null,null,null,null,"Dorantes, Laura","FL","Senior Pastor",1,null,"Dilley UMC","Las Misiones District",6050,"Dilley","No"]
[null,null,null,null,null,null,null,null,null,null,null,null,null,null,null,null,null,null,null,null,null,null,null,null,null,null,null,null,null,null,null,null,null,null,null,null,null,null,null,null,null,null,null,"Duarte, Leticia","PL","Senior Pastor",0.75,null,"Dilley:Bethania/San Pablo: Persall","Las Misiones District",6060,"Dilley: Bethania","Yes","Pearsall: San Pablo","Yes"]
[null,null,null,null,null,null,null,null,null,null,null,null,null,null,null,null,null,null,null,null,null,null,null,null,null,null,null,null,null,null,null,null,null,null,null,null,null,null,null,null,null,null,null,"Duke, Kelly Squyres","FD","Assoc. Pastor",1,null,"Donna: FUMC","El Valle District",4040,"Donna: First","No"]
[null,null,null,null,null,null,null,null,null,null,null,null,null,null,null,null,null,null,null,null,null,null,null,null,null,null,null,null,null,null,null,null,null,null,null,null,null,null,null,null,null,null,null,"Duke, William Monroe","FE","Senior Pastor",1,null,"Donna: Principe de Paz/Alamo","El Valle District",4050,"Donna: Principe de Paz","Yes","Alamo","Yes"]
[null,null,null,null,null,null,null,null,null,null,null,null,null,null,null,null,null,null,null,null,null,null,null,null,null,null,null,null,null,null,null,null,null,null,null,null,null,null,null,null,null,null,null,"Dyke, Barbara Fruin","FE","Senior Pastor",1,null,"Driftwood UMC","Capital District",1340,"Driftwood","No"]
[null,null,null,null,null,null,null,null,null,null,null,null,null,null,null,null,null,null,null,null,null,null,null,null,null,null,null,null,null,null,null,null,null,null,null,null,null,null,null,null,null,null,null,"Dykehouse, Pamela Lynn","FE","Senior Pastor",1,null,"Dripping Springs","Capital District",1350,"Dripping Springs","No"]
[null,null,null,null,null,null,null,null,null,null,null,null,null,null,null,null,null,null,null,null,null,null,null,null,null,null,null,null,null,null,null,null,null,null,null,null,null,null,null,null,null,null,null,"Edmiston, Elizabeth Miller","PL","Senior Pastor",0.5,null,"Eagle Lake / Garwood: Lehrer Memorial","Crossroads District",3110,"Eagle Lake","No","Garwood: Lehrer Memorial","No"]
[null,null,null,null,null,null,null,null,null,null,null,null,null,null,null,null,null,null,null,null,null,null,null,null,null,null,null,null,null,null,null,null,null,null,null,null,null,null,null,null,null,null,null,"Ely, Ellen Lynne","FE","Senior Pastor",1,null,"Eagle Pass: FUMC","Hill Country District",5130,"Eagle Pass","No"]
[null,null,null,null,null,null,null,null,null,null,null,null,null,null,null,null,null,null,null,null,null,null,null,null,null,null,null,null,null,null,null,null,null,null,null,null,null,null,null,null,null,null,null,"Engstrom, Cynthia Grilk","FE","Senior Pastor",1,null,"Edinburg: El Buen Pastor","El Valle District",4070,"Edinburg: El Buen Pastor","Yes"]
[null,null,null,null,null,null,null,null,null,null,null,null,null,null,null,null,null,null,null,null,null,null,null,null,null,null,null,null,null,null,null,null,null,null,null,null,null,null,null,null,null,null,null,"Esparza, Chansin","PL","Assoc. Pastor",0.75,null,"Edinburg: First UMC","El Valle District",4080,"Edinburg: First","No"]
[null,null,null,null,null,null,null,null,null,null,null,null,null,null,null,null,null,null,null,null,null,null,null,null,null,null,null,null,null,null,null,null,null,null,null,null,null,null,null,null,null,null,null,"Estus, Christopher Austin","PL","Assoc. Pastor",0.25,null,"Edna: First UMC","Crossroads District",3120,"Edna: First","No"]
[null,null,null,null,null,null,null,null,null,null,null,null,null,null,null,null,null,null,null,null,null,null,null,null,null,null,null,null,null,null,null,null,null,null,null,null,null,null,null,null,null,null,null,"Ethridge, Yong-Shil Kim","FE","Senior Pastor",1,null,"Edna: Scruggs","Crossroads District",3130,"Edna: Scruggs Chapel","No"]
[null,null,null,null,null,null,null,null,null,null,null,null,null,null,null,null,null,null,null,null,null,null,null,null,null,null,null,null,null,null,null,null,null,null,null,null,null,null,null,null,null,null,null,"Evans, Destini","PL","Senior Pastor",0.5,null,"El Campo: First UMC","Crossroads District",3140,"El Campo: First","No"]
[null,null,null,null,null,null,null,null,null,null,null,null,null,null,null,null,null,null,null,null,null,null,null,null,null,null,null,null,null,null,null,null,null,null,null,null,null,null,null,null,null,null,null,"Evans, Stacey Bratton","PL","Senior Pastor",0.25,null,"El Campo: Wesley Chapel / Nixon: Harris Chapel","Crossroads District",3160,"El Campo: Wesley Chapel","No","Nixon: Harris Chapel","No"]
[null,null,null,null,null,null,null,null,null,null,null,null,null,null,null,null,null,null,null,null,null,null,null,null,null,null,null,null,null,null,null,null,null,null,null,null,null,null,null,null,null,null,null,"Evins, Cathleen Ann","FE","Senior Pastor",1,null,"Eldorado: First / Christoval","West District",7120,"Eldorado: First","No","Christoval","No"]
[null,null,null,null,null,null,null,null,null,null,null,null,null,null,null,null,null,null,null,null,null,null,null,null,null,null,null,null,null,null,null,null,null,null,null,null,null,null,null,null,null,null,null,"Evins, Jerry Allan","FL","Senior Pastor",1,null,"Elgin","Crossroads District",3170,"Elgin","No"]
[null,null,null,null,null,null,null,null,null,null,null,null,null,null,null,null,null,null,null,null,null,null,null,null,null,null,null,null,null,null,null,null,null,null,null,null,null,null,null,null,null,null,null,"Ewertt, Billy","OE","Senior Pastor",1,null,"Elgin: Bethel","Crossroads District",3180,"Elgin: Bethel","Yes"]
[null,null,null,null,null,null,null,null,null,null,null,null,null,null,null,null,null,null,null,null,null,null,null,null,null,null,null,null,null,null,null,null,null,null,null,null,null,null,null,null,null,null,null,"Feagins, John Patrick","FE","Senior Pastor",1,null,"Elsa","El Valle District",4090,"Elsa: First","Yes"]
[null,null,null,null,null,null,null,null,null,null,null,null,null,null,null,null,null,null,null,null,null,null,null,null,null,null,null,null,null,null,null,null,null,null,null,null,null,null,null,null,null,null,null,"Feagins, Raquel Cajiri","FE","Assoc. Pastor",1,null,"Fannin / Telferner","Coastal Bend District",2230,"Fannin","No","Telferner","No"]
[null,null,null,null,null,null,null,null,null,null,null,null,null,null,null,null,null,null,null,null,null,null,null,null,null,null,null,null,null,null,null,null,null,null,null,null,null,null,null,null,null,null,null,"Felps, David Ray","FE","Senior Pastor",1,null,"Fashing UMC","Coastal Bend District",2240,"Fashing","No"]
[null,null,null,null,null,null,null,null,null,null,null,null,null,null,null,null,null,null,null,null,null,null,null,null,null,null,null,null,null,null,null,null,null,null,null,null,null,null,null,null,null,null,null,"Fischer, Jodi","SY","Senior Pastor",0.25,null,"Fentress","Crossroads District",3200,"Fentress","No"]
[null,null,null,null,null,null,null,null,null,null,null,null,null,null,null,null,null,null,null,null,null,null,null,null,null,null,null,null,null,null,null,null,null,null,null,null,null,null,null,null,null,null,null,"Fletcher, John Vincent","FE","Senior Pastor",1,null,"Flatonia / Freyburg","Crossroads District",3210,"Flatonia","No","Freyburg","No"]
[null,null,null,null,null,null,null,null,null,null,null,null,null,null,null,null,null,null,null,null,null,null,null,null,null,null,null,null,null,null,null,null,null,null,null,null,null,null,null,null,null,null,null,"Fletcher, Mae Elizabeth","PL","Senior Pastor",0.5,null,"Floresville UMC","Las Misiones District",6070,"Floresville","No"]
[null,null,null,null,null,null,null,null,null,null,null,null,null,null,null,null,null,null,null,null,null,null,null,null,null,null,null,null,null,null,null,null,null,null,null,null,null,null,null,null,null,null,null,"Flores, Jose","FL","Senior Pastor",1,null,"Floresville: El Mesias","Las Misiones District",6080,"Floresville: El Mesias","Yes"]
[null,null,null,null,null,null,null,null,null,null,null,null,null,null,null,null,null,null,null,null,null,null,null,null,null,null,null,null,null,null,null,null,null,null,null,null,null,null,null,null,null,null,null,"Flores, Rebekah Bequi","OE","Senior Pastor",1,null,"Fredericksburg UMC","Hill Country District",5150,"Fredericksburg","No"]
[null,null,null,null,null,null,null,null,null,null,null,null,null,null,null,null,null,null,null,null,null,null,null,null,null,null,null,null,null,null,null,null,null,null,null,null,null,null,null,null,null,null,null,"Floyd, Russell Scott","FE","Senior Pastor",1,null,"Freer/Bruni/Hebbronville","Coastal Bend District",2250,"Freer","No","Bruni","No","Hebbronville: First","No"]
[null,null,null,null,null,null,null,null,null,null,null,null,null,null,null,null,null,null,null,null,null,null,null,null,null,null,null,null,null,null,null,null,null,null,null,null,null,null,null,null,null,null,null,"Franklin, Jesse Andree","FL","Senior Pastor",1,null,"Ganado/Louise","Crossroads District",3230,"Ganado: First","No","Louise","No"]
[null,null,null,null,null,null,null,null,null,null,null,null,null,null,null,null,null,null,null,null,null,null,null,null,null,null,null,null,null,null,null,null,null,null,null,null,null,null,null,null,null,null,null,"Freeman, Jacqueline","PE","Senior Pastor",1,null,"George West UMC","Coastal Bend District",2260,"George West","No"]
[null,null,null,null,null,null,null,null,null,null,null,null,null,null,null,null,null,null,null,null,null,null,null,null,null,null,null,null,null,null,null,null,null,null,null,null,null,null,null,null,null,null,null,"Freeman, Marcus Antonio Lucas","FE","District Superintendent",1,null,"Goldthwaite UMC","West District",7130,"Goldthwaite","No"]
[null,null,null,null,null,null,null,null,null,null,null,null,null,null,null,null,null,null,null,null,null,null,null,null,null,null,null,null,null,null,null,null,null,null,null,null,null,null,null,null,null,null,null,"Fuerst, Taylor","FE","Senior Pastor",1,null,"Goliad: Fannin St.","Coastal Bend District",2270,"Goliad: Fannin St.","No"]
[null,null,null,null,null,null,null,null,null,null,null,null,null,null,null,null,null,null,null,null,null,null,null,null,null,null,null,null,null,null,null,null,null,null,null,null,null,null,null,null,null,null,null,"Fulton, Kathleen","PL","Senior Pastor",0.25,null,"Goliad: First UMC","Coastal Bend District",2280,"Goliad: First","No"]
[null,null,null,null,null,null,null,null,null,null,null,null,null,null,null,null,null,null,null,null,null,null,null,null,null,null,null,null,null,null,null,null,null,null,null,null,null,null,null,null,null,null,null,"Garcia, Octaviano Zapata","PL","Assoc. Pastor",0.5,null,"Gonzales: Evans Chapel/Henson Chapel","Crossroads District",3190,"Evan's Chapel","No","Henson Chapel","No"]
[null,null,null,null,null,null,null,null,null,null,null,null,null,null,null,null,null,null,null,null,null,null,null,null,null,null,null,null,null,null,null,null,null,null,null,null,null,null,null,null,null,null,null,"Garza, Abdon","FL","Assoc. Pastor",1,null,"Gonzales: First UMC","Crossroads District",3250,"Gonzales: First","No"]
[null,null,null,null,null,null,null,null,null,null,null,null,null,null,null,null,null,null,null,null,null,null,null,null,null,null,null,null,null,null,null,null,null,null,null,null,null,null,null,null,null,null,null,"Gause, Jack Chavis","FE","Senior Pastor",1,null,"Granite Shoals: Grace UMC","Hill Country District",5160,"Granite Shoals:  Grace UMC","No"]
[null,null,null,null,null,null,null,null,null,null,null,null,null,null,null,null,null,null,null,null,null,null,null,null,null,null,null,null,null,null,null,null,null,null,null,null,null,null,null,null,null,null,null,"Gideon, Kate","PL","Senior Pastor",0.25,null,"Gruene UMC","Hill Country District",5165,"Gruene UMC","No"]
[null,null,null,null,null,null,null,null,null,null,null,null,null,null,null,null,null,null,null,null,null,null,null,null,null,null,null,null,null,null,null,null,null,null,null,null,null,null,null,null,null,null,null,"Glover, Edward E.","SY","Senior Pastor",0.5,null,"Hallettsville  / Mossy Grove","Crossroads District",3280,"Hallettsville: First","No","Mossy Grove","No"]
[null,null,null,null,null,null,null,null,null,null,null,null,null,null,null,null,null,null,null,null,null,null,null,null,null,null,null,null,null,null,null,null,null,null,null,null,null,null,null,null,null,null,null,"Gonzales, Albert","PL","Senior Pastor",0.5,null,"Hallettsville Circuit","Crossroads District",3560,"Richardson-Brown Chapel","No","Shiner: Johnson's Chapel","No"]
[null,null,null,null,null,null,null,null,null,null,null,null,null,null,null,null,null,null,null,null,null,null,null,null,null,null,null,null,null,null,null,null,null,null,null,null,null,null,null,null,null,null,null,"Gonzales, Leslie","OF","Senior Pastor",1,null,"Harlingen: El Buen Samaritano","El Valle District",4100,"Harlingen: El Buen Samaritano","Yes"]
[null,null,null,null,null,null,null,null,null,null,null,null,null,null,null,null,null,null,null,null,null,null,null,null,null,null,null,null,null,null,null,null,null,null,null,null,null,null,null,null,null,null,null,"Gonzalez, Aaron A.","FE","Chaplain",1,null,"Harlingen: First UMC","El Valle District",4110,"Harlingen: First","No"]
[null,null,null,null,null,null,null,null,null,null,null,null,null,null,null,null,null,null,null,null,null,null,null,null,null,null,null,null,null,null,null,null,null,null,null,null,null,null,null,null,null,null,null,"Gonzalez, Stan","PL","Senior Pastor",0.75,null,"Harlingen: Valley Praise","El Valle District",4120,"Harlingen: Valley Praise","No"]
[null,null,null,null,null,null,null,null,null,null,null,null,null,null,null,null,null,null,null,null,null,null,null,null,null,null,null,null,null,null,null,null,null,null,null,null,null,null,null,null,null,null,null,"Goodman, Roberta Blackerby","FE","Senior Pastor",1,null,"Harlingen: Wesley UMC","El Valle District",4130,"Harlingen: Wesley","No"]
[null,null,null,null,null,null,null,null,null,null,null,null,null,null,null,null,null,null,null,null,null,null,null,null,null,null,null,null,null,null,null,null,null,null,null,null,null,null,null,null,null,null,null,"Gotelli, Holly Hatch","FE","Senior Pastor",1,null,"Harper UMC","Hill Country District",5170,"Harper","No"]
[null,null,null,null,null,null,null,null,null,null,null,null,null,null,null,null,null,null,null,null,null,null,null,null,null,null,null,null,null,null,null,null,null,null,null,null,null,null,null,null,null,null,null,"Green, Kallie Ellen","FE","Senior Pastor",1,null,"Harwood / Prairie Lea","Crossroads District",3290,"Harwood","No","Prairie Lea","No"]
[null,null,null,null,null,null,null,null,null,null,null,null,null,null,null,null,null,null,null,null,null,null,null,null,null,null,null,null,null,null,null,null,null,null,null,null,null,null,null,null,null,null,null,"Hackett, Gregory Allan","FE","District Superintendent",1,null,"Haynie Chapel","Crossroads District",3300,"Haynie Chapel","No"]
[null,null,null,null,null,null,null,null,null,null,null,null,null,null,null,null,null,null,null,null,null,null,null,null,null,null,null,null,null,null,null,null,null,null,null,null,null,null,null,null,null,null,null,"Haley, Colleen Glasse","RE","Asst. to the District Superintendent",0.5,null,"Helotes Hills UMC","Las Misiones District",6090,"Helotes Hills","No"]
[null,null,null,null,null,null,null,null,null,null,null,null,null,null,null,null,null,null,null,null,null,null,null,null,null,null,null,null,null,null,null,null,null,null,null,null,null,null,null,null,null,null,null,"Halfacre, Celia Eileen","FE","Senior Pastor",1,null,"Hilda","West District",7140,"Hilda","No"]
[null,null,null,null,null,null,null,null,null,null,null,null,null,null,null,null,null,null,null,null,null,null,null,null,null,null,null,null,null,null,null,null,null,null,null,null,null,null,null,null,null,null,null,"Hallford, Larissa","PL","Senior Pastor",0.5,null,"Hondo UMC","Hill Country District",5180,"Hondo","No"]
[null,null,null,null,null,null,null,null,null,null,null,null,null,null,null,null,null,null,null,null,null,null,null,null,null,null,null,null,null,null,null,null,null,null,null,null,null,null,null,null,null,null,null,"Hamann, Rebecca D.","OD","Assoc. Pastor",0.75,null,"Hope Arise","Las Misiones District",6015,"Hope Arise","No"]
[null,null,null,null,null,null,null,null,null,null,null,null,null,null,null,null,null,null,null,null,null,null,null,null,null,null,null,null,null,null,null,null,null,null,null,null,null,null,null,null,null,null,null,"Han, Daesub","FE","Assoc. Pastor",1,null,"Hunt UMC","Hill Country District",5190,"Hunt","No"]
[null,null,null,null,null,null,null,null,null,null,null,null,null,null,null,null,null,null,null,null,null,null,null,null,null,null,null,null,null,null,null,null,null,null,null,null,null,null,null,null,null,null,null,"Harden, James Kevin","FL","Assoc. Pastor",1,null,"Industry","Crossroads District",3340,"Industry","No"]
[null,null,null,null,null,null,null,null,null,null,null,null,null,null,null,null,null,null,null,null,null,null,null,null,null,null,null,null,null,null,null,null,null,null,null,null,null,null,null,null,null,null,null,"Harrington, Daniel Richard","FE","Senior Pastor",1,null,"Industry: Cherry Chapel","Crossroads District",3350,"Industry: Cherry Chapel","No"]
[null,null,null,null,null,null,null,null,null,null,null,null,null,null,null,null,null,null,null,null,null,null,null,null,null,null,null,null,null,null,null,null,null,null,null,null,null,null,null,null,null,null,null,"Harris, Paul Ellis","FE","Senior Pastor",1,null,"Ingleside UMC","Coastal Bend District",2300,"Ingleside","No"]
[null,null,null,null,null,null,null,null,null,null,null,null,null,null,null,null,null,null,null,null,null,null,null,null,null,null,null,null,null,null,null,null,null,null,null,null,null,null,null,null,null,null,null,"Harris, William Monroe","FE","Senior Pastor",1,null,"Iraan","West District",7150,"Iraan UMC","No"]
[null,null,null,null,null,null,null,null,null,null,null,null,null,null,null,null,null,null,null,null,null,null,null,null,null,null,null,null,null,null,null,null,null,null,null,null,null,null,null,null,null,null,null,"Hayes, Terrence Kenyon","RA","Senior Pastor",0.5,null,"SAnt: Jacob's Chapel","Las Misiones District",6400,"SAnt: Jacob's Chapel","No"]
[null,null,null,null,null,null,null,null,null,null,null,null,null,null,null,null,null,null,null,null,null,null,null,null,null,null,null,null,null,null,null,null,null,null,null,null,null,null,null,null,null,null,null,"Healy, Laura","FL","Assoc. Pastor",0.75,null,"Johnson City UMC","Hill Country District",5200,"Johnson City: First","No"]
[null,null,null,null,null,null,null,null,null,null,null,null,null,null,null,null,null,null,null,null,null,null,null,null,null,null,null,null,null,null,null,null,null,null,null,null,null,null,null,null,null,null,null,"Heare, Scott Ryan","FE","Senior Pastor",1,null,"Jourdanton","Las Misiones District",6100,"Jourdanton","No"]
[null,null,null,null,null,null,null,null,null,null,null,null,null,null,null,null,null,null,null,null,null,null,null,null,null,null,null,null,null,null,null,null,null,null,null,null,null,null,null,null,null,null,null,"Hedgpeth, Hannah","PL","Assoc. Pastor",0.75,null,"Junction / London","West District",7160,"Junction: First","No","London","No"]
[null,null,null,null,null,null,null,null,null,null,null,null,null,null,null,null,null,null,null,null,null,null,null,null,null,null,null,null,null,null,null,null,null,null,null,null,null,null,null,null,null,null,null,"Heikes, Laura Jane","FE","Senior Pastor",1,null,"Karnes City","Coastal Bend District",2310,"Karnes City: UMC","No"]
[null,null,null,null,null,null,null,null,null,null,null,null,null,null,null,null,null,null,null,null,null,null,null,null,null,null,null,null,null,null,null,null,null,null,null,null,null,null,null,null,null,null,null,"Hembree, Kelley","FL","Senior Pastor",1,null,"Kempner UMC","Capital District",1370,"Kempner","No"]
[null,null,null,null,null,null,null,null,null,null,null,null,null,null,null,null,null,null,null,null,null,null,null,null,null,null,null,null,null,null,null,null,null,null,null,null,null,null,null,null,null,null,null,"Henneke, Glenn","SY","Senior Pastor",0.25,null,"Kerrville: Barnett Chapel","Hill Country District",5210,"Kerrville: Barnett Chapel","No"]
[null,null,null,null,null,null,null,null,null,null,null,null,null,null,null,null,null,null,null,null,null,null,null,null,null,null,null,null,null,null,null,null,null,null,null,null,null,null,null,null,null,null,null,"Henry, Reese Alexandra","FE","Senior Pastor",0.75,null,"Kerrville: First UMC","Hill Country District",5220,"Kerrville: First","No"]
[null,null,null,null,null,null,null,null,null,null,null,null,null,null,null,null,null,null,null,null,null,null,null,null,null,null,null,null,null,null,null,null,null,null,null,null,null,null,null,null,null,null,null,"Herrera, Abigail Parker","FD","Assoc. Pastor",1,null,"Kerrville: St. Paul's UMC","Hill Country District",5230,"Kerrville: St. Paul's","No"]
[null,null,null,null,null,null,null,null,null,null,null,null,null,null,null,null,null,null,null,null,null,null,null,null,null,null,null,null,null,null,null,null,null,null,null,null,null,null,null,null,null,null,null,"Herrin, Jon","FE","Assoc. Pastor",1,null,"Kingsbury","Crossroads District",3360,"Kingsbury","No"]
[null,null,null,null,null,null,null,null,null,null,null,null,null,null,null,null,null,null,null,null,null,null,null,null,null,null,null,null,null,null,null,null,null,null,null,null,null,null,null,null,null,null,null,"Herzog, Joyce","PL","Senior Pastor",0.25,null,"Kingsville: First UMC","Coastal Bend District",2350,"Kingsville: First","No"]
[null,null,null,null,null,null,null,null,null,null,null,null,null,null,null,null,null,null,null,null,null,null,null,null,null,null,null,null,null,null,null,null,null,null,null,null,null,null,null,null,null,null,null,"Hewell, Audrey Ann","RA","Senior Pastor",0.75,null,"Kyle UMC","Hill Country District",5240,"Kyle","No"]
[null,null,null,null,null,null,null,null,null,null,null,null,null,null,null,null,null,null,null,null,null,null,null,null,null,null,null,null,null,null,null,null,null,null,null,null,null,null,null,null,null,null,null,"Higginbotham, Phillip","FL","Senior Pastor",1,null,"La Feria UMC","El Valle District",4140,"La Feria","No "]
[null,null,null,null,null,null,null,null,null,null,null,null,null,null,null,null,null,null,null,null,null,null,null,null,null,null,null,null,null,null,null,null,null,null,null,null,null,null,null,null,null,null,null,"Highland, Patricia S.","FL","Assoc. Pastor",1,null,"La Feria: Dios es Amor","El Valle District",4150,"La Feria: Dios Es Amor","Yes"]
[null,null,null,null,null,null,null,null,null,null,null,null,null,null,null,null,null,null,null,null,null,null,null,null,null,null,null,null,null,null,null,null,null,null,null,null,null,null,null,null,null,null,null,"Hinkebein, John Christopher","FD","Senior Pastor",1,null,"La Grange: First UMC","Crossroads District",3370,"La Grange: First","No"]
[null,null,null,null,null,null,null,null,null,null,null,null,null,null,null,null,null,null,null,null,null,null,null,null,null,null,null,null,null,null,null,null,null,null,null,null,null,null,null,null,null,null,null,"Hoeflinger, Phillip Gregory","FE","Senior Pastor",1,null,"La Vernia","Las Misiones District",6110,"La Vernia","No"]
[null,null,null,null,null,null,null,null,null,null,null,null,null,null,null,null,null,null,null,null,null,null,null,null,null,null,null,null,null,null,null,null,null,null,null,null,null,null,null,null,null,null,null,"Horan, Karen Lynn","FE","Executive Director",1,null,"LaGrange: St. James","Crossroads District",3380,"La Grange: St. James","No"]
[null,null,null,null,null,null,null,null,null,null,null,null,null,null,null,null,null,null,null,null,null,null,null,null,null,null,null,null,null,null,null,null,null,null,null,null,null,null,null,null,null,null,null,"Hunter, Jacob Earle","FL","Senior Pastor",1,null,"Lakehills UMC","Hill Country District",5250,"Lakehills","No"]
[null,null,null,null,null,null,null,null,null,null,null,null,null,null,null,null,null,null,null,null,null,null,null,null,null,null,null,null,null,null,null,null,null,null,null,null,null,null,null,null,null,null,null,"Jackson, Caroline Jeanet","PL","Supply Pastor",0.75,null,"Lampasas UMC","Capital District",1380,"Lampasas","No"]
[null,null,null,null,null,null,null,null,null,null,null,null,null,null,null,null,null,null,null,null,null,null,null,null,null,null,null,null,null,null,null,null,null,null,null,null,null,null,null,null,null,null,null,"Jackson, Cynthia J.","FL","Senior Pastor",1,null,"Laredo: First UMC","Las Misiones District",6130,"Laredo: First","No"]
[null,null,null,null,null,null,null,null,null,null,null,null,null,null,null,null,null,null,null,null,null,null,null,null,null,null,null,null,null,null,null,null,null,null,null,null,null,null,null,null,null,null,null,"Jackson, Patrick Eugene","FL","Senior Pastor",1,null,"Laredo: La Trinidad","Las Misiones District",6140,"Laredo: La Trinidad","Yes"]
[null,null,null,null,null,null,null,null,null,null,null,null,null,null,null,null,null,null,null,null,null,null,null,null,null,null,null,null,null,null,null,null,null,null,null,null,null,null,null,null,null,null,null,"Jacobson, Ryan Douglas","FL","Assoc. Pastor",1,null,"Leakey","Hill Country District",5260,"Leakey","No"]
[null,null,null,null,null,null,null,null,null,null,null,null,null,null,null,null,null,null,null,null,null,null,null,null,null,null,null,null,null,null,null,null,null,null,null,null,null,null,null,null,null,null,null,"Jara, Juan Ortiz","RL","Senior Pastor",0.25,null,"Leander UMC","Capital District",1390,"Leander","No"]
[null,null,null,null,null,null,null,null,null,null,null,null,null,null,null,null,null,null,null,null,null,null,null,null,null,null,null,null,null,null,null,null,null,null,null,null,null,null,null,null,null,null,null,"Jenson, Gary Ryan","FE","Assoc. Pastor",1,null,"Llano: Lutie Watkins UMC","Hill Country District",5270,"Llano: Lutie Watkins","No"]
[null,null,null,null,null,null,null,null,null,null,null,null,null,null,null,null,null,null,null,null,null,null,null,null,null,null,null,null,null,null,null,null,null,null,null,null,null,null,null,null,null,null,null,"Jenson, Melissa Suzanne Allen","FE","Assoc. Pastor",1,null,"Lockhart: First UMC","Crossroads District",3390,"Lockhart: First","No"]
[null,null,null,null,null,null,null,null,null,null,null,null,null,null,null,null,null,null,null,null,null,null,null,null,null,null,null,null,null,null,null,null,null,null,null,null,null,null,null,null,null,null,null,"Ji, Yanjie","PL","Senior Pastor",0.5,null,"Lockhart: St. Mark / Dale: Corinth","Crossroads District",3090,"Dale: Corinth","No","Lockhart: St. Mark","No"]
[null,null,null,null,null,null,null,null,null,null,null,null,null,null,null,null,null,null,null,null,null,null,null,null,null,null,null,null,null,null,null,null,null,null,null,null,null,null,null,null,null,null,null,"Jimenez, Cecilio","SY","TBS",0.25,null,"Lometa/Bend","Capital District",1410,"Lometa","No","Bend","No"]
[null,null,null,null,null,null,null,null,null,null,null,null,null,null,null,null,null,null,null,null,null,null,null,null,null,null,null,null,null,null,null,null,null,null,null,null,null,null,null,null,null,null,null,"Jimenez, Rumaldo","PL","Senior Pastor",0.5,null,"Luling: First UMC","Crossroads District",3420,"Luling: First","No"]
[null,null,null,null,null,null,null,null,null,null,null,null,null,null,null,null,null,null,null,null,null,null,null,null,null,null,null,null,null,null,null,null,null,null,null,null,null,null,null,null,null,null,null,"Johnson, LyAnna M","OE","Senior Pastor",1,null,"Luling: Wm Taylor UMC","Crossroads District",3430,"Luling: Wm Taylor","No"]
[null,null,null,null,null,null,null,null,null,null,null,null,null,null,null,null,null,null,null,null,null,null,null,null,null,null,null,null,null,null,null,null,null,null,null,null,null,null,null,null,null,null,null,"Johnson, Thomas Adamson","FE","Assoc. Pastor",1,null,"Lytle","Las Misiones District",6150,"Lytle","No"]
[null,null,null,null,null,null,null,null,null,null,null,null,null,null,null,null,null,null,null,null,null,null,null,null,null,null,null,null,null,null,null,null,null,null,null,null,null,null,null,null,null,null,null,"Jones, Kathleen","PL","Senior Pastor",0.5,null,"Lytton Springs","Crossroads District",3440,"Lytton Springs","No"]
[null,null,null,null,null,null,null,null,null,null,null,null,null,null,null,null,null,null,null,null,null,null,null,null,null,null,null,null,null,null,null,null,null,null,null,null,null,null,null,null,null,null,null,"Jones, Todd McNeil","FL","Senior Pastor",1,null,"Manchaca UMC","Capital District",1420,"Manchaca","No"]
[null,null,null,null,null,null,null,null,null,null,null,null,null,null,null,null,null,null,null,null,null,null,null,null,null,null,null,null,null,null,null,null,null,null,null,null,null,null,null,null,null,null,null,"Karschner, Gary Don","FL","Senior Pastor",1,null,"Manor UMC","Crossroads District",3450,"Manor","No"]
[null,null,null,null,null,null,null,null,null,null,null,null,null,null,null,null,null,null,null,null,null,null,null,null,null,null,null,null,null,null,null,null,null,null,null,null,null,null,null,null,null,null,null,"Kelley, Jennifer Denyse","PE","Senior Pastor",1,null,"Marble Falls UMC","Hill Country District",5280,"Marble Falls","No"]
[null,null,null,null,null,null,null,null,null,null,null,null,null,null,null,null,null,null,null,null,null,null,null,null,null,null,null,null,null,null,null,null,null,null,null,null,null,null,null,null,null,null,null,"Kepler-Karrer, Cynthia Anne","FE","Senior Pastor",1,null,"Martindale","Crossroads District",3460,"Martindale","No"]
[null,null,null,null,null,null,null,null,null,null,null,null,null,null,null,null,null,null,null,null,null,null,null,null,null,null,null,null,null,null,null,null,null,null,null,null,null,null,null,null,null,null,null,"Kim, Earl","OE","Assoc. Pastor",0.5,null,"Mason: First UMC","West District",7180,"Mason: First","No"]
[null,null,null,null,null,null,null,null,null,null,null,null,null,null,null,null,null,null,null,null,null,null,null,null,null,null,null,null,null,null,null,null,null,null,null,null,null,null,null,null,null,null,null,"King, Brad","FL","Assoc. Pastor",1,null,"MC: El Divino Redentor","El Valle District",4180,"McAllen: El Divino Redentor","Yes"]
[null,null,null,null,null,null,null,null,null,null,null,null,null,null,null,null,null,null,null,null,null,null,null,null,null,null,null,null,null,null,null,null,null,null,null,null,null,null,null,null,null,null,null,"Kitchens, James","SY","Lay Pastor (PT)",0.25,null,"MC: First UMC","El Valle District",4190,"McAllen: First","No"]
[null,null,null,null,null,null,null,null,null,null,null,null,null,null,null,null,null,null,null,null,null,null,null,null,null,null,null,null,null,null,null,null,null,null,null,null,null,null,null,null,null,null,null,"Knapp, Adam Ray","FE","Co-Pastor",1,null,"MC: St. Mark UMC","El Valle District",4200,"McAllen: St. Mark","No"]
[null,null,null,null,null,null,null,null,null,null,null,null,null,null,null,null,null,null,null,null,null,null,null,null,null,null,null,null,null,null,null,null,null,null,null,null,null,null,null,null,null,null,null,"Knapp, Danielle Elizabeth","FE","Co-Pastor",1,null,"Medina UMC","Hill Country District",5290,"Medina","No"]
[null,null,null,null,null,null,null,null,null,null,null,null,null,null,null,null,null,null,null,null,null,null,null,null,null,null,null,null,null,null,null,null,null,null,null,null,null,null,null,null,null,null,null,"Knappage, Amy Canterbury","PL","Senior Pastor",0.5,null,"Melvin","West District",7200,"Melvin","No"]
[null,null,null,null,null,null,null,null,null,null,null,null,null,null,null,null,null,null,null,null,null,null,null,null,null,null,null,null,null,null,null,null,null,null,null,null,null,null,null,null,null,null,null,"Knight, Charles Adam","FE","Senior Pastor",1,null,"Menard: First UMC","West District",7210,"Menard: First","No"]
[null,null,null,null,null,null,null,null,null,null,null,null,null,null,null,null,null,null,null,null,null,null,null,null,null,null,null,null,null,null,null,null,null,null,null,null,null,null,null,null,null,null,null,"Knighten, Randolph","PD","Assoc. Pastor",1,null,"Mercedes/Edcouch","El Valle District",4230,"Mercedes: First","No","Edcouch: First","No"]
[null,null,null,null,null,null,null,null,null,null,null,null,null,null,null,null,null,null,null,null,null,null,null,null,null,null,null,null,null,null,null,null,null,null,null,null,null,null,null,null,null,null,null,"Knobles, William L.","FL","Senior Pastor",1,null,"Mercedes: El Buen Pastor","El Valle District",4220,"Mercedes: El Buen Pastor","Yes"]
[null,null,null,null,null,null,null,null,null,null,null,null,null,null,null,null,null,null,null,null,null,null,null,null,null,null,null,null,null,null,null,null,null,null,null,null,null,null,null,null,null,null,null,"Krause, Richard Mark","FL","Senior Pastor",1,null,"Mertzon","West District",7220,"Mertzon","No"]
[null,null,null,null,null,null,null,null,null,null,null,null,null,null,null,null,null,null,null,null,null,null,null,null,null,null,null,null,null,null,null,null,null,null,null,null,null,null,null,null,null,null,null,"Kretzler, Joanne Lois","FD","Children's Pastor",0.75,null,"Miles ","West District",7230,"Miles","No"]
[null,null,null,null,null,null,null,null,null,null,null,null,null,null,null,null,null,null,null,null,null,null,null,null,null,null,null,null,null,null,null,null,null,null,null,null,null,null,null,null,null,null,null,"Kwiatkowski, Laurinda","FL","Senior Pastor",1,null,"Mission: El Mesias","El Valle District",4240,"Mission: El Mesias","Yes"]
[null,null,null,null,null,null,null,null,null,null,null,null,null,null,null,null,null,null,null,null,null,null,null,null,null,null,null,null,null,null,null,null,null,null,null,null,null,null,null,null,null,null,null,"Land, Caroline Ann","PL","Senior Pastor",0.5,null,"Mission: First UMC","El Valle District",4250,"Mission: First","No"]
[null,null,null,null,null,null,null,null,null,null,null,null,null,null,null,null,null,null,null,null,null,null,null,null,null,null,null,null,null,null,null,null,null,null,null,null,null,null,null,null,null,null,null,"Landis, Sharon","OR","Senior Pastor",0.5,null,"Montel","Hill Country District",5300,"Montell","No"]
[null,null,null,null,null,null,null,null,null,null,null,null,null,null,null,null,null,null,null,null,null,null,null,null,null,null,null,null,null,null,null,null,null,null,null,null,null,null,null,null,null,null,null,"Larson, Janet Kay","FE","Senior Pastor",1,null,"Monthalia / Belmont","Crossroads District",3470,"Monthalia","No","Belmont","No"]
[null,null,null,null,null,null,null,null,null,null,null,null,null,null,null,null,null,null,null,null,null,null,null,null,null,null,null,null,null,null,null,null,null,null,null,null,null,null,null,null,null,null,null,"Latimer, Rachel","PD","Assoc. Pastor",1,null,"New Braunfels: First UMC","Hill Country District",5310,"New Braunfels: First","No"]
[null,null,null,null,null,null,null,null,null,null,null,null,null,null,null,null,null,null,null,null,null,null,null,null,null,null,null,null,null,null,null,null,null,null,null,null,null,null,null,null,null,null,null,"Leggett, Richard Lee","FE","Senior Pastor",1,null,"New Fountain","Hill Country District",5320,"New Fountain","No"]
[null,null,null,null,null,null,null,null,null,null,null,null,null,null,null,null,null,null,null,null,null,null,null,null,null,null,null,null,null,null,null,null,null,null,null,null,null,null,null,null,null,null,null,"Lind, Melissa","FL","Assoc. Pastor",1,null,"Nixon","Crossroads District",3500,"Nixon","No"]
[null,null,null,null,null,null,null,null,null,null,null,null,null,null,null,null,null,null,null,null,null,null,null,null,null,null,null,null,null,null,null,null,null,null,null,null,null,null,null,null,null,null,null,"Lirette, Jacqui Elizabeth","FL","Assoc. Pastor",1,null,"Nuevo Pacto","Las Misiones District",6355,"Nuevo Pacto","Yes"]
[null,null,null,null,null,null,null,null,null,null,null,null,null,null,null,null,null,null,null,null,null,null,null,null,null,null,null,null,null,null,null,null,null,null,null,null,null,null,null,null,null,null,null,"Lizcano, Rene","SY","Supply Pastor",0.25,null,"Oak Island UMC","Las Misiones District",6160,"Oak Island","No"]
[null,null,null,null,null,null,null,null,null,null,null,null,null,null,null,null,null,null,null,null,null,null,null,null,null,null,null,null,null,null,null,null,null,null,null,null,null,null,null,null,null,null,null,"Lizcano, Rene","SY","Senior Pastor",0.25,null,"Odem: First UMC","Coastal Bend District",2380,"Odem: First","No"]
[null,null,null,null,null,null,null,null,null,null,null,null,null,null,null,null,null,null,null,null,null,null,null,null,null,null,null,null,null,null,null,null,null,null,null,null,null,null,null,null,null,null,null,"Lloyd, Leigh Livingston","FE","Senior Pastor",1,null,"Odessa: El Divino Salvador","West District",7240,"Odessa: El Divino Salvador","Yes"]
[null,null,null,null,null,null,null,null,null,null,null,null,null,null,null,null,null,null,null,null,null,null,null,null,null,null,null,null,null,null,null,null,null,null,null,null,null,null,null,null,null,null,null,"Logan, Cody Alan","FL","Assoc. Pastor",1,null,"Ozona UMC","West District",7250,"Ozona","No"]
[null,null,null,null,null,null,null,null,null,null,null,null,null,null,null,null,null,null,null,null,null,null,null,null,null,null,null,null,null,null,null,null,null,null,null,null,null,null,null,null,null,null,null,"Longoria, Daniel Cruz","PL","Assoc. Pastor",0.25,null,"Palacios UMC","Coastal Bend District",2390,"Palacios","No"]
[null,null,null,null,null,null,null,null,null,null,null,null,null,null,null,null,null,null,null,null,null,null,null,null,null,null,null,null,null,null,null,null,null,null,null,null,null,null,null,null,null,null,null,"Lopez, Robert M","FE","Assistant to the Episcopal Office",1,null,"Pearsall UMC","Las Misiones District",6170,"Pearsall","No"]
[null,null,null,null,null,null,null,null,null,null,null,null,null,null,null,null,null,null,null,null,null,null,null,null,null,null,null,null,null,null,null,null,null,null,null,null,null,null,null,null,null,null,null,"Lott, Michele Marie","FE","Senior Pastor",1,null,"Pettus/Pawnee","Coastal Bend District",2410,"Pettus","No","Pawnee","No"]
[null,null,null,null,null,null,null,null,null,null,null,null,null,null,null,null,null,null,null,null,null,null,null,null,null,null,null,null,null,null,null,null,null,null,null,null,null,null,null,null,null,null,null,"Lovos, Oscar","SY","Senior Pastor",0.25,null,"Pflugerville UMC","Capital District",1440,"Pflugerville","No"]
[null,null,null,null,null,null,null,null,null,null,null,null,null,null,null,null,null,null,null,null,null,null,null,null,null,null,null,null,null,null,null,null,null,null,null,null,null,null,null,null,null,null,null,"Luhrs, Glenn Arthur","FE","Senior Pastor",1,null,"Pharr: La Trinidad","El Valle District",4270,"Pharr: La Trinidad","Yes"]
[null,null,null,null,null,null,null,null,null,null,null,null,null,null,null,null,null,null,null,null,null,null,null,null,null,null,null,null,null,null,null,null,null,null,null,null,null,null,null,null,null,null,null,"Lumpkin, George Enos","FE","Senior Pastor",1,null,"Pharr: Nueva Vida","El Valle District",4280,"Pharr: Nueva Vida","Yes"]
[null,null,null,null,null,null,null,null,null,null,null,null,null,null,null,null,null,null,null,null,null,null,null,null,null,null,null,null,null,null,null,null,null,null,null,null,null,null,null,null,null,null,null,"Mann, Ralph Duke","FE","Senior Pastor",1,null,"Pleasanton: First UMC","Las Misiones District",6190,"Pleasanton: First","No"]
[null,null,null,null,null,null,null,null,null,null,null,null,null,null,null,null,null,null,null,null,null,null,null,null,null,null,null,null,null,null,null,null,null,null,null,null,null,null,null,null,null,null,null,"Marceau, Linda Proctor","FD","Assoc. Pastor",0.75,null,"Point Comfort / Lolita","Coastal Bend District",2420,"Point Comfort","No","Lolita","No"]
[null,null,null,null,null,null,null,null,null,null,null,null,null,null,null,null,null,null,null,null,null,null,null,null,null,null,null,null,null,null,null,null,null,null,null,null,null,null,null,null,null,null,null,"Marchbanks, Hilary","FE","Senior Pastor",1,null,"Port Arthur: Getsemani","Crossroads District",3530,"Port Arthur: Getsemani","Yes"]
[null,null,null,null,null,null,null,null,null,null,null,null,null,null,null,null,null,null,null,null,null,null,null,null,null,null,null,null,null,null,null,null,null,null,null,null,null,null,null,null,null,null,null,"Martin, Gary William","RL","Senior Pastor",0.5,null,"Port Lavaca: First","Coastal Bend District",2430,"Port Lavaca: First","No"]
[null,null,null,null,null,null,null,null,null,null,null,null,null,null,null,null,null,null,null,null,null,null,null,null,null,null,null,null,null,null,null,null,null,null,null,null,null,null,null,null,null,null,null,"Martin, Ruth Aquellis","OE","Senior Pastor",0.5,null,"Portland: First UMC","Coastal Bend District",2440,"Portland: First","No"]
[null,null,null,null,null,null,null,null,null,null,null,null,null,null,null,null,null,null,null,null,null,null,null,null,null,null,null,null,null,null,null,null,null,null,null,null,null,null,null,null,null,null,null,"Martin, Sidney Ray","PL","Senior Pastor",0.5,null,"Poteet / Yancey","Las Misiones District",6200,"Poteet","No","Yancey","No"]
[null,null,null,null,null,null,null,null,null,null,null,null,null,null,null,null,null,null,null,null,null,null,null,null,null,null,null,null,null,null,null,null,null,null,null,null,null,null,null,null,null,null,null,"Martinez, Erick","SY","Supply Pastor",0.25,null,"Rankin","West District",7270,"Rankin","No"]
[null,null,null,null,null,null,null,null,null,null,null,null,null,null,null,null,null,null,null,null,null,null,null,null,null,null,null,null,null,null,null,null,null,null,null,null,null,null,null,null,null,null,null,"Martinez, Jose Rene","SY","Senior Pastor",0.25,null,"Raymondville / Lyford","El Valle District",4310,"Raymondville: First","No","Lyford","No"]
[null,null,null,null,null,null,null,null,null,null,null,null,null,null,null,null,null,null,null,null,null,null,null,null,null,null,null,null,null,null,null,null,null,null,null,null,null,null,null,null,null,null,null,"Matthews, Neal","RE","Senior Pastor",0.5,null,"Raymondville: Bethel","El Valle District",4300,"Bethel","Yes"]
[null,null,null,null,null,null,null,null,null,null,null,null,null,null,null,null,null,null,null,null,null,null,null,null,null,null,null,null,null,null,null,null,null,null,null,null,null,null,null,null,null,null,null,"Mays, Robert","SY","TBS",0.5,null,"Refugio UMC","Coastal Bend District",2460,"Refugio","No"]
[null,null,null,null,null,null,null,null,null,null,null,null,null,null,null,null,null,null,null,null,null,null,null,null,null,null,null,null,null,null,null,null,null,null,null,null,null,null,null,null,null,null,null,"McAvoy, Glen Don","FD","Senior Pastor",1,null,"Rio Grande City: First","El Valle District",4320,"Rio Grande City: First","Yes"]
[null,null,null,null,null,null,null,null,null,null,null,null,null,null,null,null,null,null,null,null,null,null,null,null,null,null,null,null,null,null,null,null,null,null,null,null,null,null,null,null,null,null,null,"McClain, James Carlyle","FE","Senior Pastor",1,null,"Rio Grande City: St. John's","El Valle District",4330,"Rio Grande City: St. John","No"]
[null,null,null,null,null,null,null,null,null,null,null,null,null,null,null,null,null,null,null,null,null,null,null,null,null,null,null,null,null,null,null,null,null,null,null,null,null,null,null,null,null,null,null,"McCorkle, Catherine Otto","FL","Senior Pastor",1,null,"Riviera","Coastal Bend District",2470,"Riviera","No"]
[null,null,null,null,null,null,null,null,null,null,null,null,null,null,null,null,null,null,null,null,null,null,null,null,null,null,null,null,null,null,null,null,null,null,null,null,null,null,null,null,null,null,null,"McNitzky, Richard Reed","FE","Assoc. Pastor",1,null,"Robert Lee","West District",7280,"Robert Lee","No"]
[null,null,null,null,null,null,null,null,null,null,null,null,null,null,null,null,null,null,null,null,null,null,null,null,null,null,null,null,null,null,null,null,null,null,null,null,null,null,null,null,null,null,null,"McRorey, Larry Lewis","FE","Senior Pastor",1,null,"Robstown: El Redentor/Kingsville: El Buen Pastor","Coastal Bend District",2340,"Kingsville: El Buen Pastor","Yes","Kingsville: El Buen Pastor","Yes"]
[null,null,null,null,null,null,null,null,null,null,null,null,null,null,null,null,null,null,null,null,null,null,null,null,null,null,null,null,null,null,null,null,null,null,null,null,null,null,null,null,null,null,null,"Meande, John Njie","FE","Senior Pastor",1,null,"Rockport: First UMC","Coastal Bend District",2490,"Rockport: First","No"]
[null,null,null,null,null,null,null,null,null,null,null,null,null,null,null,null,null,null,null,null,null,null,null,null,null,null,null,null,null,null,null,null,null,null,null,null,null,null,null,null,null,null,null,"Melton, John Scott","SY","Supply Pastor",0.25,null,"Rocksprings: FUMC/Barksdale","West District",7290,"Rocksprings: First","No","Barksdale","No"]
[null,null,null,null,null,null,null,null,null,null,null,null,null,null,null,null,null,null,null,null,null,null,null,null,null,null,null,null,null,null,null,null,null,null,null,null,null,null,null,null,null,null,null,"Melton, Patrick J.","PE","Senior Pastor",1,null,"Rolling Hills Community","Capital District",1450,"Rolling Hills Community","No"]
[null,null,null,null,null,null,null,null,null,null,null,null,null,null,null,null,null,null,null,null,null,null,null,null,null,null,null,null,null,null,null,null,null,null,null,null,null,null,null,null,null,null,null,"Melville, David","OE","Senior Pastor",0.5,null,"Sabinal: First UMC","Hill Country District",5340,"Sabinal: First","No"]
[null,null,null,null,null,null,null,null,null,null,null,null,null,null,null,null,null,null,null,null,null,null,null,null,null,null,null,null,null,null,null,null,null,null,null,null,null,null,null,null,null,null,null,"Mercado, Jose David","FL","Assoc. Pastor",0.25,null,"San Benito","El Valle District",4340,"San Benito: First","No"]
[null,null,null,null,null,null,null,null,null,null,null,null,null,null,null,null,null,null,null,null,null,null,null,null,null,null,null,null,null,null,null,null,null,null,null,null,null,null,null,null,null,null,null,"Merrill, Laura Anne","FE","District Superintendent",1,null,"San Juan: Los Wesleyanos","El Valle District",4360,"San Juan: Los Wesleyanos","Yes"]
[null,null,null,null,null,null,null,null,null,null,null,null,null,null,null,null,null,null,null,null,null,null,null,null,null,null,null,null,null,null,null,null,null,null,null,null,null,null,null,null,null,null,null,"Mertz, Austin William","FL","Assoc. Pastor",1,null,"San Marcos: El Buen Pastor","Hill Country District",5350,"San Marcos: El Buen Pastor","Yes"]
[null,null,null,null,null,null,null,null,null,null,null,null,null,null,null,null,null,null,null,null,null,null,null,null,null,null,null,null,null,null,null,null,null,null,null,null,null,null,null,null,null,null,null,"Milan, Aaron","SY","Supply Pastor",0.25,null,"San Marcos: First UMC","Hill Country District",5360,"San Marcos: First","No"]
[null,null,null,null,null,null,null,null,null,null,null,null,null,null,null,null,null,null,null,null,null,null,null,null,null,null,null,null,null,null,null,null,null,null,null,null,null,null,null,null,null,null,null,"Morriss, Jason Ashely","FL","Senior Pastor",1,null,"San Marcos: Jackson Chapel","Hill Country District",5370,"San Marcos: Jackson Chapel","No"]
[null,null,null,null,null,null,null,null,null,null,null,null,null,null,null,null,null,null,null,null,null,null,null,null,null,null,null,null,null,null,null,null,null,null,null,null,null,null,null,null,null,null,null,"Muehl, Jeffrey Scott","FE","Senior Pastor",1,null,"San Saba UMC","West District",7300,"San Saba","No"]
[null,null,null,null,null,null,null,null,null,null,null,null,null,null,null,null,null,null,null,null,null,null,null,null,null,null,null,null,null,null,null,null,null,null,null,null,null,null,null,null,null,null,null,"Mumme, Michael Christopher","FE","Senior Pastor",1,null,"SAng: Bethel","West District",7310,"SAng: Bethel","Yes"]
[null,null,null,null,null,null,null,null,null,null,null,null,null,null,null,null,null,null,null,null,null,null,null,null,null,null,null,null,null,null,null,null,null,null,null,null,null,null,null,null,null,null,null,"Murray, David Lee","SY","TBS",0.75,null,"SAng: First UMC","West District",7320,"SAng: First","No"]
[null,null,null,null,null,null,null,null,null,null,null,null,null,null,null,null,null,null,null,null,null,null,null,null,null,null,null,null,null,null,null,null,null,null,null,null,null,null,null,null,null,null,null,"Noble, James Robert","FE","Senior Pastor",1,null,"SAng: Grape Creek UMC","West District",76901,"SAng: Grape Creek","No"]
[null,null,null,null,null,null,null,null,null,null,null,null,null,null,null,null,null,null,null,null,null,null,null,null,null,null,null,null,null,null,null,null,null,null,null,null,null,null,null,null,null,null,null,"Noseworthy, Denise","PL","Senior Pastor",0.25,null,"SAng: Sierra Vista UMC","West District",7350,"SAng: Sierra Vista","No"]
[null,null,null,null,null,null,null,null,null,null,null,null,null,null,null,null,null,null,null,null,null,null,null,null,null,null,null,null,null,null,null,null,null,null,null,null,null,null,null,null,null,null,null,"Ortiz, Robert","FE","Assoc. Pastor",1,null,"SAng: St. Luke","West District",7360,"SAng: St. Luke","No"]
[null,null,null,null,null,null,null,null,null,null,null,null,null,null,null,null,null,null,null,null,null,null,null,null,null,null,null,null,null,null,null,null,null,null,null,null,null,null,null,null,null,null,null,"Ortiz, Santos","SY","Supply Pastor",0.5,null,"SAng: Wesley Trinity","West District",7370,"SAng: Wesley Trinity","No"]
[null,null,null,null,null,null,null,null,null,null,null,null,null,null,null,null,null,null,null,null,null,null,null,null,null,null,null,null,null,null,null,null,null,null,null,null,null,null,null,null,null,null,null,"Osorio, Juan Crescencio","FE","Senior Pastor",1,null,"SAnt: Alamo","Las Misiones District",6210,"SAnt: Alamo","No"]
[null,null,null,null,null,null,null,null,null,null,null,null,null,null,null,null,null,null,null,null,null,null,null,null,null,null,null,null,null,null,null,null,null,null,null,null,null,null,null,null,null,null,null,"Ouellette, Derrick Shaw","PE","Senior Pastor",1,null,"Sant: Alamo Heights","Las Misiones District",6220,"SAnt: Alamo Heights","No"]
[null,null,null,null,null,null,null,null,null,null,null,null,null,null,null,null,null,null,null,null,null,null,null,null,null,null,null,null,null,null,null,null,null,null,null,null,null,null,null,null,null,null,null,"Padilla, Liliana","FE","Assoc. Pastor",1,null,"SAnt: Bethany","Las Misiones District",6240,"SAnt: Bethany","No"]
[null,null,null,null,null,null,null,null,null,null,null,null,null,null,null,null,null,null,null,null,null,null,null,null,null,null,null,null,null,null,null,null,null,null,null,null,null,null,null,null,null,null,null,"Padilla, Mayra Flores","PL","Senior Pastor",0.25,null,"SAnt: Bethel UMC","Las Misiones District",6250,"SAnt: Bethel","No"]
[null,null,null,null,null,null,null,null,null,null,null,null,null,null,null,null,null,null,null,null,null,null,null,null,null,null,null,null,null,null,null,null,null,null,null,null,null,null,null,null,null,null,null,"Padilla, Miguel Angel","FE","Vitality Ctr Dir & Dir of Connectional Ministries",1,null,"SAnt: Chapel Hill UMC","Las Misiones District",6270,"SAnt: Chapel Hill","No"]
[null,null,null,null,null,null,null,null,null,null,null,null,null,null,null,null,null,null,null,null,null,null,null,null,null,null,null,null,null,null,null,null,null,null,null,null,null,null,null,null,null,null,null,"Paredez, Gilbert","FL","Senior Pastor",1,null,"SAnt: Chinese UMC","Las Misiones District",6280,"SAnt: Chinese UMC","No"]
[null,null,null,null,null,null,null,null,null,null,null,null,null,null,null,null,null,null,null,null,null,null,null,null,null,null,null,null,null,null,null,null,null,null,null,null,null,null,null,null,null,null,null,"Parry, Candice","SY","Lay Pastor (PT)",0.5,null,"SAnt: Christ Fellowship","Las Misiones District",6290,"SAnt: Christ Fellowship","No"]
[null,null,null,null,null,null,null,null,null,null,null,null,null,null,null,null,null,null,null,null,null,null,null,null,null,null,null,null,null,null,null,null,null,null,null,null,null,null,null,null,null,null,null,"Patton, Daniel Scott","FL","Senior Pastor",1,null,"SAnt: Coker UMC","Las Misiones District",6300,"SAnt: Coker","No"]
[null,null,null,null,null,null,null,null,null,null,null,null,null,null,null,null,null,null,null,null,null,null,null,null,null,null,null,null,null,null,null,null,null,null,null,null,null,null,null,null,null,null,null,"Paul, Gertrude Sparks","RL","Assoc. Pastor",0.5,null,"SAnt: Colonial Hills UMC","Las Misiones District",6310,"SAnt: Colonial Hills","No"]
[null,null,null,null,null,null,null,null,null,null,null,null,null,null,null,null,null,null,null,null,null,null,null,null,null,null,null,null,null,null,null,null,null,null,null,null,null,null,null,null,null,null,null,"Paull, Olga","FL","Senior Pastor",1,null,"SAnt: Divine Grace UMC","Las Misiones District",6530,"Divine Grace UMC","No"]
[null,null,null,null,null,null,null,null,null,null,null,null,null,null,null,null,null,null,null,null,null,null,null,null,null,null,null,null,null,null,null,null,null,null,null,null,null,null,null,null,null,null,null,"Payne, Andrew John","FE","Senior Pastor",1,null,"SAnt: East St. Paul","Las Misiones District",6320,"SAnt: East St. Paul","No"]
[null,null,null,null,null,null,null,null,null,null,null,null,null,null,null,null,null,null,null,null,null,null,null,null,null,null,null,null,null,null,null,null,null,null,null,null,null,null,null,null,null,null,null,"Payne, David Erich","FE","Senior Pastor",1,null,"SAnt: El Divino Salvador","Las Misiones District",6340,"Sant: El Divino Salvador","Yes"]
[null,null,null,null,null,null,null,null,null,null,null,null,null,null,null,null,null,null,null,null,null,null,null,null,null,null,null,null,null,null,null,null,null,null,null,null,null,null,null,null,null,null,null,"Pecina, Roland","SY","Senior Pastor",0.25,null,"SAnt: Emanuel","Las Misiones District",6360,"Sant: Emanuel","Yes"]
[null,null,null,null,null,null,null,null,null,null,null,null,null,null,null,null,null,null,null,null,null,null,null,null,null,null,null,null,null,null,null,null,null,null,null,null,null,null,null,null,null,null,null,"Pennington, Matthew James","FE","Senior Pastor",1,null,"Sant: Epworth","Las Misiones District",6370,"Sant: Epworth","No"]
[null,null,null,null,null,null,null,null,null,null,null,null,null,null,null,null,null,null,null,null,null,null,null,null,null,null,null,null,null,null,null,null,null,null,null,null,null,null,null,null,null,null,null,"Perales, Raymond","FL","Assoc. Pastor",1,null,"SAnt: Ernest T. Dixon","Las Misiones District",6380,"SAnt: Ernest T. Dixon","No"]
[null,null,null,null,null,null,null,null,null,null,null,null,null,null,null,null,null,null,null,null,null,null,null,null,null,null,null,null,null,null,null,null,null,null,null,null,null,null,null,null,null,null,null,"Perales, Robert Aaron","FE","Senior Pastor",1,null,"SAnt: Harlandale","Las Misiones District",6390,"SAnt: Harlandale","No"]
[null,null,null,null,null,null,null,null,null,null,null,null,null,null,null,null,null,null,null,null,null,null,null,null,null,null,null,null,null,null,null,null,null,null,null,null,null,null,null,null,null,null,null,"Perez, Federico","FL","Assoc. Pastor",1,null,"SAnt: Jefferson","Las Misiones District",6410,"SAnt: Jefferson","No"]
[null,null,null,null,null,null,null,null,null,null,null,null,null,null,null,null,null,null,null,null,null,null,null,null,null,null,null,null,null,null,null,null,null,null,null,null,null,null,null,null,null,null,null,"Perez, Herlinda","SY","Senior Pastor",0.25,null,"SAnt: Korean UMC","Las Misiones District",6420,"SAnt: Korean","No"]
[null,null,null,null,null,null,null,null,null,null,null,null,null,null,null,null,null,null,null,null,null,null,null,null,null,null,null,null,null,null,null,null,null,null,null,null,null,null,null,null,null,null,null,"Perez, Jose Arturo","PL","Senior Pastor",0.25,null,"SAnt: La Trinidad","Las Misiones District",6430,"Sant: La Trinidad","Yes"]
[null,null,null,null,null,null,null,null,null,null,null,null,null,null,null,null,null,null,null,null,null,null,null,null,null,null,null,null,null,null,null,null,null,null,null,null,null,null,null,null,null,null,null,"Peyton, Steven David","FE","Senior Pastor",1,null,"SAnt: Laurel Heights UMC","Las Misiones District",6440,"SAnt: Laurel Heights UMC","No"]
[null,null,null,null,null,null,null,null,null,null,null,null,null,null,null,null,null,null,null,null,null,null,null,null,null,null,null,null,null,null,null,null,null,null,null,null,null,null,null,null,null,null,null,"Pina, Isidro E","FE","Senior Pastor",1,null,"SAnt: Northern Hills UMC","Las Misiones District",6450,"SAnt: Northern Hills","No"]
[null,null,null,null,null,null,null,null,null,null,null,null,null,null,null,null,null,null,null,null,null,null,null,null,null,null,null,null,null,null,null,null,null,null,null,null,null,null,null,null,null,null,null,"Pittman, Carolyn","RL","Senior Pastor",1,null,"SAnt: Northwest Hills UMC","Las Misiones District",6460,"SAnt: Northwest Hills","No"]
[null,null,null,null,null,null,null,null,null,null,null,null,null,null,null,null,null,null,null,null,null,null,null,null,null,null,null,null,null,null,null,null,null,null,null,null,null,null,null,null,null,null,null,"Plaza, Rhonda","PL","Senior Pastor",0.5,null,"SAnt: Oak Meadow UMC","Las Misiones District",6470,"SAnt: Oak Meadow","No"]
[null,null,null,null,null,null,null,null,null,null,null,null,null,null,null,null,null,null,null,null,null,null,null,null,null,null,null,null,null,null,null,null,null,null,null,null,null,null,null,null,null,null,null,"Polk, Kenneth Coleman","FL","Senior Pastor",1,null,"SAnt: Oxford UMC","Las Misiones District",6480,"SAnt: Oxford","No"]
[null,null,null,null,null,null,null,null,null,null,null,null,null,null,null,null,null,null,null,null,null,null,null,null,null,null,null,null,null,null,null,null,null,null,null,null,null,null,null,null,null,null,null,"Pollard, Norma Lisa","PL","Assoc. Pastor",0.5,null,"SAnt: Pollard Memorial","Las Misiones District",6490,"Sant: Pollard Memorial","Yes"]
[null,null,null,null,null,null,null,null,null,null,null,null,null,null,null,null,null,null,null,null,null,null,null,null,null,null,null,null,null,null,null,null,null,null,null,null,null,null,null,null,null,null,null,"Porterfield, Mark Courtney","FE","Senior Pastor",1,null,"SAnt: Resurrection UMC","Las Misiones District",6510,"SAnt: Resurrection UMC","No"]
[null,null,null,null,null,null,null,null,null,null,null,null,null,null,null,null,null,null,null,null,null,null,null,null,null,null,null,null,null,null,null,null,null,null,null,null,null,null,null,null,null,null,null,"Portwood, Kevin Spencer","FE","Senior Pastor",1,null,"SAnt: Sanford Chapel","Las Misiones District",6520,"SAnt: Sanford Chapel","No"]
[null,null,null,null,null,null,null,null,null,null,null,null,null,null,null,null,null,null,null,null,null,null,null,null,null,null,null,null,null,null,null,null,null,null,null,null,null,null,null,null,null,null,null,"Powell, Wade Alan","FE","Senior Pastor",1,null,"SAnt: Spring Creek","Las Misiones District",6540,"SAnt: Spring Creek","No"]
[null,null,null,null,null,null,null,null,null,null,null,null,null,null,null,null,null,null,null,null,null,null,null,null,null,null,null,null,null,null,null,null,null,null,null,null,null,null,null,null,null,null,null,"Pruitt, Wilson","FE","Senior Pastor",1,null,"SAnt: St. Andrew's UMC","Las Misiones District",6550,"SAnt: St. Andrew's","No"]
[null,null,null,null,null,null,null,null,null,null,null,null,null,null,null,null,null,null,null,null,null,null,null,null,null,null,null,null,null,null,null,null,null,null,null,null,null,null,null,null,null,null,null,"Ramirez, Nohemi V","FE","Senior Pastor",1,null,"SAnt: St. John's UMC","Las Misiones District",6560,"SAnt: St. John's","No"]
[null,null,null,null,null,null,null,null,null,null,null,null,null,null,null,null,null,null,null,null,null,null,null,null,null,null,null,null,null,null,null,null,null,null,null,null,null,null,null,null,null,null,null,"Rang, Susan","FE","Senior Pastor",1,null,"SAnt: St. Mark's UMC","Las Misiones District",6570,"SAnt: St. Mark's","No"]
[null,null,null,null,null,null,null,null,null,null,null,null,null,null,null,null,null,null,null,null,null,null,null,null,null,null,null,null,null,null,null,null,null,null,null,null,null,null,null,null,null,null,null,"Ratliff, Matthew","FL","Senior Pastor",1,null,"SAnt: St. Matthew's UMC","Las Misiones District",6580,"SAnt: St. Matthew's","No"]
[null,null,null,null,null,null,null,null,null,null,null,null,null,null,null,null,null,null,null,null,null,null,null,null,null,null,null,null,null,null,null,null,null,null,null,null,null,null,null,null,null,null,null,"Reames, Travis","OR","Senior Pastor",0.5,null,"SAnt: St. Paul UMC","Las Misiones District",6590,"SAnt: St. Paul","No"]
[null,null,null,null,null,null,null,null,null,null,null,null,null,null,null,null,null,null,null,null,null,null,null,null,null,null,null,null,null,null,null,null,null,null,null,null,null,null,null,null,null,null,null,"Reed, Ryan Keith","PL","Senior Pastor",0.25,null,"SAnt: Travis Park UMC","Las Misiones District",6600,"SAnt: Travis Park","No"]
[null,null,null,null,null,null,null,null,null,null,null,null,null,null,null,null,null,null,null,null,null,null,null,null,null,null,null,null,null,null,null,null,null,null,null,null,null,null,null,null,null,null,null,"Relder, Damon Edward","FE","Assoc. Pastor",1,null,"SAnt: Trinity UMC","Las Misiones District",6610,"SAnt: Trinity","No"]
[null,null,null,null,null,null,null,null,null,null,null,null,null,null,null,null,null,null,null,null,null,null,null,null,null,null,null,null,null,null,null,null,null,null,null,null,null,null,null,null,null,null,null,"Reyes, Wilda","FL","Senior Pastor",1,null,"SAnt: University UMC","Las Misiones District",6620,"SAnt: University","No"]
[null,null,null,null,null,null,null,null,null,null,null,null,null,null,null,null,null,null,null,null,null,null,null,null,null,null,null,null,null,null,null,null,null,null,null,null,null,null,null,null,null,null,null,"Rignack, Jose","OE","Senior Pastor",0.5,null,"SAnt: Westlawn","Las Misiones District",6630,"Sant: Westlawn","Yes"]
[null,null,null,null,null,null,null,null,null,null,null,null,null,null,null,null,null,null,null,null,null,null,null,null,null,null,null,null,null,null,null,null,null,null,null,null,null,null,null,null,null,null,null,"Ritchie, Frank","PL","Assoc. Pastor",0.25,null,"SAnt: Windcrest UMC","Las Misiones District",6640,"SAnt: Windcrest","No"]
[null,null,null,null,null,null,null,null,null,null,null,null,null,null,null,null,null,null,null,null,null,null,null,null,null,null,null,null,null,null,null,null,null,null,null,null,null,null,null,null,null,null,null,"Robinson, Ted","OR","Senior Pastor",0.25,null,"Schertz UMC","Las Misiones District",6650,"Schertz","No"]
[null,null,null,null,null,null,null,null,null,null,null,null,null,null,null,null,null,null,null,null,null,null,null,null,null,null,null,null,null,null,null,null,null,null,null,null,null,null,null,null,null,null,null,"Roe, William Grady","RE","Senior Pastor",0.5,null,"Schulenburg","Crossroads District",3580,"Schulenburg","No"]
[null,null,null,null,null,null,null,null,null,null,null,null,null,null,null,null,null,null,null,null,null,null,null,null,null,null,null,null,null,null,null,null,null,null,null,null,null,null,null,null,null,null,null,"Rogers, Bryan Jay","FE","Senior Pastor",1,null,"Schulenburg: Stevens Chapel","Crossroads District",3670,"Stevens Chapel","No"]
[null,null,null,null,null,null,null,null,null,null,null,null,null,null,null,null,null,null,null,null,null,null,null,null,null,null,null,null,null,null,null,null,null,null,null,null,null,null,null,null,null,null,null,"Rogers, John Gavin","FL","Assoc. Pastor",1,null,"Seadrift","Coastal Bend District",2520,"Seadrift","No"]
[null,null,null,null,null,null,null,null,null,null,null,null,null,null,null,null,null,null,null,null,null,null,null,null,null,null,null,null,null,null,null,null,null,null,null,null,null,null,null,null,null,null,null,"Rojas, Federico","SY","Supply Pastor",0.25,null,"Seguin: First UMC","Crossroads District",3590,"Seguin: First","No"]
[null,null,null,null,null,null,null,null,null,null,null,null,null,null,null,null,null,null,null,null,null,null,null,null,null,null,null,null,null,null,null,null,null,null,null,null,null,null,null,null,null,null,null,"Romero, Herman Lee","FE","Senior Pastor",1,null,"Seguin: La Trinidad","Crossroads District",3600,"Seguin: La Trinidad","Yes"]
[null,null,null,null,null,null,null,null,null,null,null,null,null,null,null,null,null,null,null,null,null,null,null,null,null,null,null,null,null,null,null,null,null,null,null,null,null,null,null,null,null,null,null,"Rubio, Ricardo","FE","Senior Pastor",1,null,"Seguin: Wesley Harper UMC","Crossroads District",3610,"Seguin: Wesley Harper","No"]
[null,null,null,null,null,null,null,null,null,null,null,null,null,null,null,null,null,null,null,null,null,null,null,null,null,null,null,null,null,null,null,null,null,null,null,null,null,null,null,null,null,null,null,"Saenz III, Ruben","FL","Senior Pastor",1,null,"SELECT CHARGE'S NAME"]
[null,null,null,null,null,null,null,null,null,null,null,null,null,null,null,null,null,null,null,null,null,null,null,null,null,null,null,null,null,null,null,null,null,null,null,null,null,null,null,null,null,null,null,"Saenz, Aaron Gabriel","FL","Senior Pastor",1,null,"Shiner","Crossroads District",3620,"Shiner: First","No"]
[null,null,null,null,null,null,null,null,null,null,null,null,null,null,null,null,null,null,null,null,null,null,null,null,null,null,null,null,null,null,null,null,null,null,null,null,null,null,null,null,null,null,null,"Saenz, Iris","PL","Assoc. Pastor",0.25,null,"Sinton: First UMC","Coastal Bend District",2530,"Sinton: First","No"]
[null,null,null,null,null,null,null,null,null,null,null,null,null,null,null,null,null,null,null,null,null,null,null,null,null,null,null,null,null,null,null,null,null,null,null,null,null,null,null,null,null,null,null,"Samano, Jesus","FL","Assoc. Pastor",1,null,"Skidmore UMC","Coastal Bend District",2540,"Skidmore","No"]
[null,null,null,null,null,null,null,null,null,null,null,null,null,null,null,null,null,null,null,null,null,null,null,null,null,null,null,null,null,null,null,null,null,null,null,null,null,null,null,null,null,null,null,"Sanchez, David","FE","Senior Pastor",1,null,"Smiley UMC","Crossroads District",3640,"Smiley","No"]
[null,null,null,null,null,null,null,null,null,null,null,null,null,null,null,null,null,null,null,null,null,null,null,null,null,null,null,null,null,null,null,null,null,null,null,null,null,null,null,null,null,null,null,"Sanderford, Ricky Lynn","FE","District Superintendent",1,null,"Smithville: First","Crossroads District",3650,"Smithville: First","No"]
[null,null,null,null,null,null,null,null,null,null,null,null,null,null,null,null,null,null,null,null,null,null,null,null,null,null,null,null,null,null,null,null,null,null,null,null,null,null,null,null,null,null,null,"Sanders, Stephen Albert","FE","Senior Pastor",1,null,"Somerset UMC","Las Misiones District",6660,"Somerset","No"]
[null,null,null,null,null,null,null,null,null,null,null,null,null,null,null,null,null,null,null,null,null,null,null,null,null,null,null,null,null,null,null,null,null,null,null,null,null,null,null,null,null,null,null,"Sattiewhite, Pamela","PL","Senior Pastor",0.25,null,"Sonora UMC","West District",7380,"Sonora","No"]
[null,null,null,null,null,null,null,null,null,null,null,null,null,null,null,null,null,null,null,null,null,null,null,null,null,null,null,null,null,null,null,null,null,null,null,null,null,null,null,null,null,null,null,"Sauceda, Robert","SY","Supply Pastor",0.25,null,"Staples","Crossroads District",3660,"Staples","No"]
[null,null,null,null,null,null,null,null,null,null,null,null,null,null,null,null,null,null,null,null,null,null,null,null,null,null,null,null,null,null,null,null,null,null,null,null,null,null,null,null,null,null,null,"Sauceda, Roberto","SY","Supply Pastor",0.25,null,"Star / Center City","West District",7390,"Star","No","Center City","No"]
[null,null,null,null,null,null,null,null,null,null,null,null,null,null,null,null,null,null,null,null,null,null,null,null,null,null,null,null,null,null,null,null,null,null,null,null,null,null,null,null,null,null,null,"Schwarz, Victoria","FD","Assoc. Pastor",0.25,null,"Sterling City: First UMC","West District",7400,"Sterling City: First","No"]
[null,null,null,null,null,null,null,null,null,null,null,null,null,null,null,null,null,null,null,null,null,null,null,null,null,null,null,null,null,null,null,null,null,null,null,null,null,null,null,null,null,null,null,"Scott, Lon Howard","PL","Senior Pastor",0.75,null,"Stockdale: Christ UMC","Las Misiones District",6670,"Stockdale: Christ","No"]
[null,null,null,null,null,null,null,null,null,null,null,null,null,null,null,null,null,null,null,null,null,null,null,null,null,null,null,null,null,null,null,null,null,null,null,null,null,null,null,null,null,null,null,"Segovia, Gustavo","SY","Senior Pastor",0.25,null,"Taft","Coastal Bend District",2550,"Taft","No"]
[null,null,null,null,null,null,null,null,null,null,null,null,null,null,null,null,null,null,null,null,null,null,null,null,null,null,null,null,null,null,null,null,null,null,null,null,null,null,null,null,null,null,null,"Select Pastor's Name",null,null,null,null,"Three Rivers UMC","Coastal Bend District",2560,"Three Rivers","No"]
[null,null,null,null,null,null,null,null,null,null,null,null,null,null,null,null,null,null,null,null,null,null,null,null,null,null,null,null,null,null,null,null,null,null,null,null,null,null,null,null,null,null,null,"Shelly, Dinah Smith","FE","Senior Pastor",1,null,"Universal City","Las Misiones District",6680,"Universal City","No"]
[null,null,null,null,null,null,null,null,null,null,null,null,null,null,null,null,null,null,null,null,null,null,null,null,null,null,null,null,null,null,null,null,null,null,null,null,null,null,null,null,null,null,null,"Smallwood, Clayton Neal","OD","Assoc. Pastor",1,null,"Utopia UMC","Hill Country District",5380,"Utopia","No"]
[null,null,null,null,null,null,null,null,null,null,null,null,null,null,null,null,null,null,null,null,null,null,null,null,null,null,null,null,null,null,null,null,null,null,null,null,null,null,null,null,null,null,null,"Smith, Darrell Lord","FL","Assoc. Pastor",1,null,"Uvalde: First UMC","Hill Country District",5390,"Uvalde: First","No"]
[null,null,null,null,null,null,null,null,null,null,null,null,null,null,null,null,null,null,null,null,null,null,null,null,null,null,null,null,null,null,null,null,null,null,null,null,null,null,null,null,null,null,null,"Smith, Paul Neal","PL","Senior Pastor",0.75,null,"Uvalde: La Divina Trinidad","Hill Country District",5400,"Uvalde La Divina Trinidad","Yes"]
[null,null,null,null,null,null,null,null,null,null,null,null,null,null,null,null,null,null,null,null,null,null,null,null,null,null,null,null,null,null,null,null,null,null,null,null,null,null,null,null,null,null,null,"Smith, William Anderson","FE","Senior Pastor",1,null,"V: First UMC","Crossroads District",3690,"Victoria: First","No"]
[null,null,null,null,null,null,null,null,null,null,null,null,null,null,null,null,null,null,null,null,null,null,null,null,null,null,null,null,null,null,null,null,null,null,null,null,null,null,null,null,null,null,null,"Snape, Jonathan","FE","Senior Pastor",1,null,"V: Webster Chapel","Crossroads District",3710,"Victoria: Webster Chapel","No"]
[null,null,null,null,null,null,null,null,null,null,null,null,null,null,null,null,null,null,null,null,null,null,null,null,null,null,null,null,null,null,null,null,null,null,null,null,null,null,null,null,null,null,null,"Spurlock, John Paul","FL","Senior Pastor",1,null,"Valley Spring/Cherokee","Hill Country District",5410,"Valley Spring","No","Cherokee","No"]
[null,null,null,null,null,null,null,null,null,null,null,null,null,null,null,null,null,null,null,null,null,null,null,null,null,null,null,null,null,null,null,null,null,null,null,null,null,null,null,null,null,null,null,"Stegemueller, William Keith","FE","Senior Pastor",1,null,"Veribest / Paint Rock","West District",7410,"Veribest UMC","No","Paint Rock","No"]
[null,null,null,null,null,null,null,null,null,null,null,null,null,null,null,null,null,null,null,null,null,null,null,null,null,null,null,null,null,null,null,null,null,null,null,null,null,null,null,null,null,null,null,"Stewart, Abel C","FD","Assoc. Pastor",1,null,"Victoria: John Wesley","Crossroads District",3700,"Victoria: John Wesley","No"]
[null,null,null,null,null,null,null,null,null,null,null,null,null,null,null,null,null,null,null,null,null,null,null,null,null,null,null,null,null,null,null,null,null,null,null,null,null,null,null,null,null,null,null,"Stone, Catherine Linea","FD","Assoc. Pastor",1,null,"Violet Crown City Church","Capital District",1040,"Violet Crown City Church","No"]
[null,null,null,null,null,null,null,null,null,null,null,null,null,null,null,null,null,null,null,null,null,null,null,null,null,null,null,null,null,null,null,null,null,null,null,null,null,null,null,null,null,null,null,"Strahan, Steve","PL","Senior Pastor",0.5,null,"Waco: Latin American/Temple: El Divino Salvador","Capital District",1480,"Waco: Latin American","Yes","Temple: El Divino Salvador","Yes"]
[null,null,null,null,null,null,null,null,null,null,null,null,null,null,null,null,null,null,null,null,null,null,null,null,null,null,null,null,null,null,null,null,null,null,null,null,null,null,null,null,null,null,null,"Straus, Lisa Moulton","FE","Senior Pastor",1,null,"Walnut","Hill Country District",5420,"Walnut","No"]
[null,null,null,null,null,null,null,null,null,null,null,null,null,null,null,null,null,null,null,null,null,null,null,null,null,null,null,null,null,null,null,null,null,null,null,null,null,null,null,null,null,null,null,"Strehli, Tamara Jean","FE","Assoc. Pastor",1,null,"Weimer","Crossroads District",3730,"Weimar: First","No"]
[null,null,null,null,null,null,null,null,null,null,null,null,null,null,null,null,null,null,null,null,null,null,null,null,null,null,null,null,null,null,null,null,null,null,null,null,null,null,null,null,null,null,null,"Stringer, Clifton Walker","FE","Senior Pastor",1,null,"Weslaco: La Santisima Trinidad","El Valle District",4400,"Weslaco: La Santisima Trinidad","Yes"]
[null,null,null,null,null,null,null,null,null,null,null,null,null,null,null,null,null,null,null,null,null,null,null,null,null,null,null,null,null,null,null,null,null,null,null,null,null,null,null,null,null,null,null,"Surdy, Jason","PE","Assoc. Pastor",1,null,"Weslaco:First/Port Isabel: First UMC","El Valle District",4390,"Weslaco: First","No","Port Isabel: First "]
[null,null,null,null,null,null,null,null,null,null,null,null,null,null,null,null,null,null,null,null,null,null,null,null,null,null,null,null,null,null,null,null,null,null,null,null,null,null,null,null,null,null,null,"Swarts, Judy A.","FL","Senior Pastor",1,null,"Wimberley UMC","Hill Country District",5430,"Wimberley","No"]
[null,null,null,null,null,null,null,null,null,null,null,null,null,null,null,null,null,null,null,null,null,null,null,null,null,null,null,null,null,null,null,null,null,null,null,null,null,null,null,null,null,null,null,"Sweet, James Edgar","RE","Program Director",0.5,null,"Winchester","Crossroads District",3740,"Winchester","No"]
[null,null,null,null,null,null,null,null,null,null,null,null,null,null,null,null,null,null,null,null,null,null,null,null,null,null,null,null,null,null,null,null,null,null,null,null,null,null,null,null,null,null,null,"Swetman, Michael","PL","Senior Pastor",0.75,null,"Woodsboro: Faith United","Coastal Bend District",2570,"Woodsboro: Faith United","No"]
[null,null,null,null,null,null,null,null,null,null,null,null,null,null,null,null,null,null,null,null,null,null,null,null,null,null,null,null,null,null,null,null,null,null,null,null,null,null,null,null,null,null,null,"Tarver, Tom Neal","RE","Retired",1,null,"Yoakum/Hope","Crossroads District",3750,"Yoakum: First","No","Hope","No"]
[null,null,null,null,null,null,null,null,null,null,null,null,null,null,null,null,null,null,null,null,null,null,null,null,null,null,null,null,null,null,null,null,null,null,null,null,null,null,null,null,null,null,null,"Teague, Jason Andrew","FE","Senior Pastor",1,null,"Yorktown: First/ Runge","Crossroads District",3760,"Yorktown: First","No","Runge","No"]
[null,null,null,null,null,null,null,null,null,null,null,null,null,null,null,null,null,null,null,null,null,null,null,null,null,null,null,null,null,null,null,null,null,null,null,null,null,null,null,null,null,null,null,"Teeter, Rusty Lynn","FE","Senior Pastor",1,null,"Zapata","El Valle District",4410,"Zapata","No"]
[null,null,null,null,null,null,null,null,null,null,null,null,null,null,null,null,null,null,null,null,null,null,null,null,null,null,null,null,null,null,null,null,null,null,null,null,null,null,null,null,null,null,null,"Thomas, Spencer Kurt","FL","Assoc. Pastor",1]
[null,null,null,null,null,null,null,null,null,null,null,null,null,null,null,null,null,null,null,null,null,null,null,null,null,null,null,null,null,null,null,null,null,null,null,null,null,null,null,null,null,null,null,"Thomson, Michael Ray","PL","Senior Pastor",0.5]
[null,null,null,null,null,null,null,null,null,null,null,null,null,null,null,null,null,null,null,null,null,null,null,null,null,null,null,null,null,null,null,null,null,null,null,null,null,null,null,null,null,null,null,"Thornton, Adam Kristopher","FE","Senior Pastor",1]
[null,null,null,null,null,null,null,null,null,null,null,null,null,null,null,null,null,null,null,null,null,null,null,null,null,null,null,null,null,null,null,null,null,null,null,null,null,null,null,null,null,null,null,"Thorpe-Johnson, Suzette","PL","Assoc. Pastor",0.5]
[null,null,null,null,null,null,null,null,null,null,null,null,null,null,null,null,null,null,null,null,null,null,null,null,null,null,null,null,null,null,null,null,null,null,null,null,null,null,null,null,null,null,null,"Toalson, Katie L.","FL","Senior Pastor",1]
[null,null,null,null,null,null,null,null,null,null,null,null,null,null,null,null,null,null,null,null,null,null,null,null,null,null,null,null,null,null,null,null,null,null,null,null,null,null,null,null,null,null,null,"Tobias, Joseph","SY","Senior Pastor",1]
[null,null,null,null,null,null,null,null,null,null,null,null,null,null,null,null,null,null,null,null,null,null,null,null,null,null,null,null,null,null,null,null,null,null,null,null,null,null,null,null,null,null,null,"Tognetti, Joseph","FE","Senior Pastor",1]
[null,null,null,null,null,null,null,null,null,null,null,null,null,null,null,null,null,null,null,null,null,null,null,null,null,null,null,null,null,null,null,null,null,null,null,null,null,null,null,null,null,null,null,"Toomire, Kyle Robert","FE","Senior Pastor",1]
[null,null,null,null,null,null,null,null,null,null,null,null,null,null,null,null,null,null,null,null,null,null,null,null,null,null,null,null,null,null,null,null,null,null,null,null,null,null,null,null,null,null,null,"Tracy, Janet Deitiker","OE","Senior Pastor",1]
[null,null,null,null,null,null,null,null,null,null,null,null,null,null,null,null,null,null,null,null,null,null,null,null,null,null,null,null,null,null,null,null,null,null,null,null,null,null,null,null,null,null,null,"Trammell, Benjamin David","FE","Senior Pastor",1]
[null,null,null,null,null,null,null,null,null,null,null,null,null,null,null,null,null,null,null,null,null,null,null,null,null,null,null,null,null,null,null,null,null,null,null,null,null,null,null,null,null,null,null,"Trawick, Jack David","FE","Senior Pastor",1]
[null,null,null,null,null,null,null,null,null,null,null,null,null,null,null,null,null,null,null,null,null,null,null,null,null,null,null,null,null,null,null,null,null,null,null,null,null,null,null,null,null,null,null,"Tyndall, Mandy Stanford","PL","Senior Pastor",0.5]
[null,null,null,null,null,null,null,null,null,null,null,null,null,null,null,null,null,null,null,null,null,null,null,null,null,null,null,null,null,null,null,null,null,null,null,null,null,null,null,null,null,null,null,"Valle, Saul Israel","FE","Senior Pastor",1]
[null,null,null,null,null,null,null,null,null,null,null,null,null,null,null,null,null,null,null,null,null,null,null,null,null,null,null,null,null,null,null,null,null,null,null,null,null,null,null,null,null,null,null,"Valles, John Mendez","Unknown","Senior Pastor",1]
[null,null,null,null,null,null,null,null,null,null,null,null,null,null,null,null,null,null,null,null,null,null,null,null,null,null,null,null,null,null,null,null,null,null,null,null,null,null,null,null,null,null,null,"Vazquez, Maribel","FE","Senior Pastor",1]
[null,null,null,null,null,null,null,null,null,null,null,null,null,null,null,null,null,null,null,null,null,null,null,null,null,null,null,null,null,null,null,null,null,null,null,null,null,null,null,null,null,null,null,"Vela, Maria","FL","Senior Pastor",1]
[null,null,null,null,null,null,null,null,null,null,null,null,null,null,null,null,null,null,null,null,null,null,null,null,null,null,null,null,null,null,null,null,null,null,null,null,null,null,null,null,null,null,null,"Vernone, Michelle Jacquelynn","FE","Senior Pastor",1]
[null,null,null,null,null,null,null,null,null,null,null,null,null,null,null,null,null,null,null,null,null,null,null,null,null,null,null,null,null,null,null,null,null,null,null,null,null,null,null,null,null,null,null,"Villalpando-Stewart, Guadalupe T.","FE","Senior Pastor",1]
[null,null,null,null,null,null,null,null,null,null,null,null,null,null,null,null,null,null,null,null,null,null,null,null,null,null,null,null,null,null,null,null,null,null,null,null,null,null,null,null,null,null,null,"Waddle, Robert Charles","FL","Senior Pastor",1]
[null,null,null,null,null,null,null,null,null,null,null,null,null,null,null,null,null,null,null,null,null,null,null,null,null,null,null,null,null,null,null,null,null,null,null,null,null,null,null,null,null,null,null,"Waller, Kendall A","FE","Executive Director",1]
[null,null,null,null,null,null,null,null,null,null,null,null,null,null,null,null,null,null,null,null,null,null,null,null,null,null,null,null,null,null,null,null,null,null,null,null,null,null,null,null,null,null,null,"Washington, Maurice Billy","RH","Senior Pastor",0.75]
[null,null,null,null,null,null,null,null,null,null,null,null,null,null,null,null,null,null,null,null,null,null,null,null,null,null,null,null,null,null,null,null,null,null,null,null,null,null,null,null,null,null,null,"Waters, Sharon G.","Unknown","Senior Pastor",0.5]
[null,null,null,null,null,null,null,null,null,null,null,null,null,null,null,null,null,null,null,null,null,null,null,null,null,null,null,null,null,null,null,null,null,null,null,null,null,null,null,null,null,null,null,"Waters, Sharon Hennigan","OE","Senior Pastor",0.5]
[null,null,null,null,null,null,null,null,null,null,null,null,null,null,null,null,null,null,null,null,null,null,null,null,null,null,null,null,null,null,null,null,null,null,null,null,null,null,null,null,null,null,null,"Weatherston, Janet Laurie","FL","Assoc. Pastor",1]
[null,null,null,null,null,null,null,null,null,null,null,null,null,null,null,null,null,null,null,null,null,null,null,null,null,null,null,null,null,null,null,null,null,null,null,null,null,null,null,null,null,null,null,"Weise, Dale Wade","PL","Assoc. Pastor",0.25]
[null,null,null,null,null,null,null,null,null,null,null,null,null,null,null,null,null,null,null,null,null,null,null,null,null,null,null,null,null,null,null,null,null,null,null,null,null,null,null,null,null,null,null,"Welborn, Matt","FL","Senior Pastor",1]
[null,null,null,null,null,null,null,null,null,null,null,null,null,null,null,null,null,null,null,null,null,null,null,null,null,null,null,null,null,null,null,null,null,null,null,null,null,null,null,null,null,null,null,"Welborn, Teresa Gayle","FE","Senior Pastor",1]
[null,null,null,null,null,null,null,null,null,null,null,null,null,null,null,null,null,null,null,null,null,null,null,null,null,null,null,null,null,null,null,null,null,null,null,null,null,null,null,null,null,null,null,"White, Earl Dale","FE","Senior Pastor",1]
[null,null,null,null,null,null,null,null,null,null,null,null,null,null,null,null,null,null,null,null,null,null,null,null,null,null,null,null,null,null,null,null,null,null,null,null,null,null,null,null,null,null,null,"Whites, Dayton Stanton","FE","Senior Pastor",1]
[null,null,null,null,null,null,null,null,null,null,null,null,null,null,null,null,null,null,null,null,null,null,null,null,null,null,null,null,null,null,null,null,null,null,null,null,null,null,null,null,null,null,null,"Whiteside, Betty","LY","TBS",0.25]
[null,null,null,null,null,null,null,null,null,null,null,null,null,null,null,null,null,null,null,null,null,null,null,null,null,null,null,null,null,null,null,null,null,null,null,null,null,null,null,null,null,null,null,"Wicke, Jerimey Joshua","FE","Senior Pastor",1]
[null,null,null,null,null,null,null,null,null,null,null,null,null,null,null,null,null,null,null,null,null,null,null,null,null,null,null,null,null,null,null,null,null,null,null,null,null,null,null,null,null,null,null,"Williams, Willie Mae","PL","Senior Pastor",0.25]
[null,null,null,null,null,null,null,null,null,null,null,null,null,null,null,null,null,null,null,null,null,null,null,null,null,null,null,null,null,null,null,null,null,null,null,null,null,null,null,null,null,null,null,"Williamson, Kelli Lee","FE","Senior Pastor",1]
[null,null,null,null,null,null,null,null,null,null,null,null,null,null,null,null,null,null,null,null,null,null,null,null,null,null,null,null,null,null,null,null,null,null,null,null,null,null,null,null,null,null,null,"Wilson, Holly Kristen Ebel","FE","Assoc. Pastor",1]
[null,null,null,null,null,null,null,null,null,null,null,null,null,null,null,null,null,null,null,null,null,null,null,null,null,null,null,null,null,null,null,null,null,null,null,null,null,null,null,null,null,null,null,"Wilson, Robert","Unknown","Supply Pastor",0.5]
[null,null,null,null,null,null,null,null,null,null,null,null,null,null,null,null,null,null,null,null,null,null,null,null,null,null,null,null,null,null,null,null,null,null,null,null,null,null,null,null,null,null,null,"Woodson, Zettie Fennie","FL","Senior Pastor",1]
[null,null,null,null,null,null,null,null,null,null,null,null,null,null,null,null,null,null,null,null,null,null,null,null,null,null,null,null,null,null,null,null,null,null,null,null,null,null,null,null,null,null,null,"Young, Cynthia Joanne","PL","Assoc. Pastor",1]
[null,null,null,null,null,null,null,null,null,null,null,null,null,null,null,null,null,null,null,null,null,null,null,null,null,null,null,null,null,null,null,null,null,null,null,null,null,null,null,null,null,null,null,"Young, Richard Alvin","FE","Senior Pastor",1]
[null,null,null,null,null,null,null,null,null,null,null,null,null,null,null,null,null,null,null,null,null,null,null,null,null,null,null,null,null,null,null,null,null,null,null,null,null,null,null,null,null,null,null,"Zaiontz-Newcomer, Patricia Lee","RE","Senior Pastor",1]
[null,null,null,null,null,null,null,null,null,null,null,null,null,null,null,null,null,null,null,null,null,null,null,null,null,null,null,null,null,null,null,null,null,null,null,null,null,null,null,null,null,null,null,"Zamora, Carlos L.","AM","Senior Pastor",1]
[null,null,null,null,null,null,null,null,null,null,null,null,null,null,null,null,null,null,null,null,null,null,null,null,null,null,null,null,null,null,null,null,null,null,null,null,null,null,null,null,null,null,null,"Zamudio, Julian","FL","Senior Pastor",1]
[null,null,null,null,null,null,null,null,null,null,null,null,null,null,null,null,null,null,null,null,null,null,null,null,null,null,null,null,null,null,null,null,null,null,null,null,null,null,null,null,null,null,null,"Zander, Richard","FL","Senior Pastor",1]
[null,null,null,null,null,null,null,null,null,null,null,null,null,null,null,null,null,null,null,null,null,null,null,null,null,null,null,null,null,null,null,null,null,null,null,null,null,null,null,null,null,null,null,"Zermeno, Adrienne Lynn","FE","Senior Pastor",1]
[null,null,null,null,null,null,null,null,null,null,null,null,null,null,null,null,null,null,null,null,null,null,null,null,null,null,null,null,null,null,null,null,null,null,null,null,null,null,null,null,null,null,null,"Zimmerman, Joseph Parker","OE","Assoc. Pastor",1]
[null,null,null,null,null,null,null,null,null,null,null,null,null,null,null,null,null,null,null,null,null,null,null,null,null,null,null,null,null,null,null,null,null,null,null,null,null,null,null,null,null,null,null,"Zumwalt, Darin","FL","Senior Pastor",1]

{"sheet":"2023 HealthFlex Rates","index":1,"n_rows":0,"n_cols":0,"rows_kept":0,"cut":false,"hidden":false,"merged":[]}